{"text_format":"1","workbook":"xlsx","n_sheets":5,"sheets":["Liste choix référentiels menus","Accueil","S R M","Tableau référentiels menus","Modifier référentiels menus"],"not_rendered":{"charts":0,"images":4,"macros":1,"external_links":0,"defined_names":21,"comments":0,"pivot_tables":0},"unopened":[],"bounds":{"document_bytes":16777216,"sheet_cells":100000,"rows_first":2000,"rows_last":500,"rows_between":2000,"halvings":0,"cell_chars":16384,"cell_head_chars":4096},"cells_cut":0,"cells_raw":0,"read":"whole","date_system":"1900"}

{"sheet":"Liste choix référentiels menus","index":0,"n_rows":435,"n_cols":25,"rows_kept":435,"cut":false,"hidden":false,"merged":[[0,0,0,24]]}
["Liste de choix pour les budgets mensuels, primitifs, les décisions modificatives numéros une et deux, les menus, les opérations bancaires et les opérations numéraires."]
[]
["Liste code référentiels menus","Liste nom référentiels menus","Code conditionnement référentiels menus","Conditionnement référentiels menus","Code jour référentiels menus","Jour référentiels menus","Code destination référentiels menus","Destination référentiels menus","Code titre référentiels menus","Titre référentiels menus","Code période concernée menus","Période concernée menus","Code période viandes week-end","Période viandes week-end","Codes articles budgétaires et numéraires","Nom articles budgétaires et numéraires","Catégorie budgétaire","Nature budgétaire","Section budgétaire","Clients bancaires","Fournisseurs bancaires","Périodicité budgétaire","Clients numéraires"," Fournisseurs numéraires","Conditionnement des articles bancaires et numéraires"]
["DMR01","Pomme","CCRM01","1 bocal ou 1 boîte pour 1 repas","CJRM01","Dimanche midi","CDRM01","Menu journalier","CTRM01","DMR","CPCM01","Janvier","CPVWE01","Viande week-end premier semestre","DA01","Agneau","Budgets mensuels","des dépenses","alimentaires","Autres clients bancaires","Autres fournisseurs bancaires","Annuelle","Autres clients numéraires","1001 piles batteries à Créteil","1 aller et retour (billets de train)"]
["DS01","Pomme","CCRM02","1 boîte de 6 œufs. 3 œufs pour 1 repas","CJRM02","Dimanche midi et soir","CDRM02","Menu midi retraite","CTRM02","DS","CPCM02","Février","CPVWE02","Viande week-end deuxième semestre","DA02","Ananas","Budgets primitifs","des recettes","bancaires","Banque française de crédit coopératif","Banque française de crédit coopératif","Bimensuelle","Banque française de crédit coopératif","Autres fournisseurs numéraires","1 baguette pour 4 jours (pain)"]
["DWE01","Ananas","CCRM03","1 boîte ou 1 pot pour 1 repas","CJRM03","Dimanche soir","CDRM03","Menu viandes","CTRM03","DWE","CPCM03","Mars",null,null,"DA03","Apéritif","Décision modificative numéro une",null,"horticoles","Caisse nationale d'assurance vieillesse","Banque populaire caisse épargne","Bimestrielle","Bot Novacovici","Boissy or","1 bloc de 100 feuilles (papier à lettres)"]
["DWE02","Autres fruits","CCRM04","1 boîte pour 1 repas","CJRM04","Lundi à dimanche soirs",null,null,"CTRM04","LMR","CPCM04","Avril",null,null,"DA04","Asperges","Décision modificative numéro deux",null,"médicales","Caisse nationale des retraites des agents des collectivités locales","Caisse épargne","Du 01 au 04 inclus de chaque mois","Carrefour","Bot Novacovici","1 boîte de ? (élastiques)"]
["DWE03","Avocats","CCRM05","1 boîte pour 2 repas","CJRM05","Lundi à vendredi midis",null,null,"CTRM05","LSLM","CPCM05","Mai",null,null,"DA05","Autres dépenses alimentaires","Opérations bancaires",null,"non alimentaires","Mutuelle","Canal plus","Du 01 au 16 inclus de chaque mois","Caisse épargne","Boucherie Boissy 2","1 boîte de ? (trombones)"]
["DWE04","Bananes","CCRM06","1 botte ou 1 sachet pour 1 repas","CJRM06","Lundi à vendredi soirs",null,null,"CTRM06","LSMJ","CPCM06","Juin",null,null,"DA06","Autres fruits","Opérations numéraires",null,"numéraires","Sécurité sociale","Électricité de France","Du 05 au 16 inclus de chaque mois","Fafa","Carrefour","1 boîte de six œufs. 3 œufs pour 1 repas"]
["DWE05","Clémentines","CCRM07","1 botte ou 1 sachet pour 2 repas","CJRM07","Lundi et mardi soirs",null,null,"CTRM07","LSV","CPCM07","Juillet",null,null,"DA07","Avocats dessert",null,null,null,null,"Entreprise Clément","Du 17 au 24 inclus de chaque mois","Géant Casino","Darty","1 boîte ou 1 flacon pour 1 repas"]
["DWE06","Crème","CCRM08","1 morceau de 300 grammes ou 400 grammes (Leclerc) pour 3 repas","CJRM08","Mercredi et jeudi soirs",null,null,"CTRM08","LWED","CPCM08","Août",null,null,"DA08","Avocat légume",null,null,null,null,"Entreprise Lagarde Marie-Pierre","Du 25 au 31 inclus de chaque mois","Gémo","Docteur Leclerc Alain","1 boîte pour 1 repas"]
["DWE07","Dattes","CCRM09","1 morceau de 500 grammes pour 5 repas","CJRM09","Samedi et dimanche midis",null,null,"CTRM09","LWES","CPCM09","Septembre",null,null,"DA09","Bananes dessert",null,null,null,null,"Gaz de France","Hebdomadaire","Joly Marc","Docteur Méguira Nicole","1 boîte pour 2 repas"]
["DWE08","Figues","CCRM10","1 pack de 4 pots pour le week-end. 1 pot pour 1 repas","CJRM10","Samedi et dimanche midis et soirs",null,null,"CTRM10","O","CPCM10","Octobre",null,null,"DA10","Bananes matin",null,null,null,null,"Mutuelle","Journalière","Leclerc","Docteur Robbiola Odile","1 bouquet"]
["DWE09","Fromage blanc","CCRM11","1 pack de 6 pots. 3 pots par repas","CJRM11","Samedi midi et soir",null,null,"CTRM11","PC","CPCM11","Novembre",null,null,"DA11","Betterave rouge",null,null,null,null,"Orange","Mensuelle","Ray Claude","Docteur Vandenbulcke Marie-Dominique","1 bouteille de 100 millilitres"]
["DWE10","Fruits au sirop","CCRM12","1 paquet pour 1 repas","CJRM12","Vendredi soir",null,null,"CTRM12","VMR","CPCM12","Décembre",null,null,"DA12","Beurre",null,null,null,null,"Paris habitat","Selon les besoins","Vendrisse jacques","Encre service","1 bouteille de 150 centilitres pour 6 mois maximum (vinaigre anticalcaire)"]
["DWE11","Fruits de saison","CCRM13","1 paquet pour 2 repas",null,null,null,null,"CTRM13","VS",null,null,null,null,"DA13","Bifteck haché de bœuf",null,null,null,null,"Protection 24","Selon menu",null,"Fafa","1 branche pour 1 repas (céleri)"]
["DWE12","Gâteau de riz","CCRM14","1 paquet pour 2 repas. 1 ou 2 saucisses pour 1 repas",null,null,null,null,"CTRM14","VWE",null,null,null,null,"DA14","Bifteck haché de cheval",null,null,null,null,"Trésor public","Semestrielle",null,"Flash retouches","1 cahier de 100 feuilles (cigarettes)"]
["DWE13","Gâteau de semoule","CCRM15","1 paquet pour 4 repas",null,null,null,null,"CTRM15","PVWE",null,null,null,null,"DA15","Bifteck haché de veau",null,null,null,null,"Union départementale des associations familiales du Val-de-Marne","Tous les 4 jours",null,"FNAC","1 carnet de 10 billets (billets de tombola)"]
["DWE14","Gâteaux samedi et dimanche","CCRM16","1 sachet de 1,5, 2 ou 3 kilogrammes. 1 pomme pour 1 repas",null,null,null,null,null,null,null,null,null,null,"DA16","Bœuf",null,null,null,null,null,"Trimestrielle",null,"Géant casino","1 carnet de 10 tickets (Tickets de bus, de métro, de R.E.R., tous transports)"]
["DWE15","Mousse au chocolat","CCRM17","1 sachet pour 2 repas",null,null,null,null,null,null,null,null,null,null,"DA17","Bonbons",null,null,null,null,null,null,null,"Gémo","1 cartouche de 10 paquets (maximum mensuel; tabac)"]
["DWE16","Oranges","CCRM18","1 sachet pour 4 repas",null,null,null,null,null,null,null,null,null,null,"DA18","Bouchée à la reine",null,null,null,null,null,null,null,"Histoire d'or","1 flacon de ? (vitres)"]
["DWE17","Petits suisses","CCRM19","1 tranche pour 1 repas",null,null,null,null,null,null,null,null,null,null,"DA19","Boudin",null,null,null,null,null,null,null,"Jardin de Benoît à Créteil","1 flacon de 10 millilitres (vernis à ongles)"]
["DWE18","Pruneaux","CCRM20","1 tranche pour 2 repas",null,null,null,null,null,null,null,null,null,null,"DA20","Café",null,null,null,null,null,null,null,"Joly Marc","1 flacon de 100 centilitres"]
["DWE19","Riz","CCRM21","125 grammes pour 1 repas",null,null,null,null,null,null,null,null,null,null,"DA21","Carottes",null,null,null,null,null,null,null,"La poste","1 flacon de 125 millilitres (essence briquets Zippo)"]
["DWE20","Tapioca","CCRM22","20 frites pour 1 repas",null,null,null,null,null,null,null,null,null,null,"DA22","Cassoulet",null,null,null,null,null,null,null,"Le facteur","1 flacon de 1980 millilitres (lessive pour le linge)"]
["DWE21","Yaourts","CCRM23","25 grammes pour 1 repas",null,null,null,null,null,null,null,null,null,null,"DA23","Céleri",null,null,null,null,null,null,null,"Le gardien","1 flacon de 200 centilitres"]
["LMR01","Asperges","CCRM24","3 tranches pour 1 repas",null,null,null,null,null,null,null,null,null,null,"DA24","Cervelas",null,null,null,null,null,null,null,"Leclerc","1 flacon de 200 millilitres"]
["LMR02","Avocat","CCRM25","5 cuillères pour 1 repas",null,null,null,null,null,null,null,null,null,null,"DA25","Champignons",null,null,null,null,null,null,null,"Les éboueurs","1 flacon de 250 millilitres (Gaz briquets Laguiole et Dupont)"]
["LMR03","Carottes","CCRM26","Unité : 1 branche pour 1 repas",null,null,null,null,null,null,null,null,null,null,"DA26","Cheval",null,null,null,null,null,null,null,"Les mots à lire","1 flacon de 3 litres"]
["LMR04","Céleri","CCRM27","Unité : 1 morceau pour 2 repas",null,null,null,null,null,null,null,null,null,null,"DA27","Chips",null,null,null,null,null,null,null,"Les pompiers","1 flacon de 300 millilitres"]
["LMR05","Champignons","CCRM28","Unité : 1 pour 1 repas",null,null,null,null,null,null,null,null,null,null,"DA28","Chocolat",null,null,null,null,null,null,null,"Librairie Joyen à Créteil","1 flacon de 400 millilitres"]
["LMR06","Concombre","CCRM29","Unité : 1 pour 2 repas",null,null,null,null,null,null,null,null,null,null,"DA29","Choucroute",null,null,null,null,null,null,null,"Mister Minit à Créteil","1 flacon de 6 pierres (briquets Zippo)"]
["LMR07","Couscous","CCRM30","Unité : 1 pour 4 repas",null,null,null,null,null,null,null,null,null,null,"DA30","Chou-fleur",null,null,null,null,null,null,null,"Novoviande","1 flacon de 750 grammes (Ajax)"]
["LMR08","Maïs","CCRM31","Unité : 2 à 4 pour 1 repas",null,null,null,null,null,null,null,null,null,null,"DA31","Choux de Bruxelles",null,null,null,null,null,null,null,"Office dépôt à Créteil","1 flacon de 750 millilitres"]
["LMR09","Pâtes à la sauce tomates","CCRM32","Unité : 2 pour 1 repas",null,null,null,null,null,null,null,null,null,null,"DA32","Clémentine",null,null,null,null,null,null,null,"Optic 2000","1 flacon engrais universel KB d'1 litre"]
["LMR10","Pâtes au beurre","CCRM33","Unité : 1 tête pour 1 repas",null,null,null,null,null,null,null,null,null,null,"DA33","Coca cola",null,null,null,null,null,null,null,"Orian","1 morceau de 400 grammes ou 300 grammes pour 3 repas (Saucisson Leclerc)"]
["LMR11","Poireau",null,null,null,null,null,null,null,null,null,null,null,null,"DA34","Cœur",null,null,null,null,null,null,null,"Pressing Lemesle","1 morceau pour 5 repas (les cinq rôtis)"]
["LMR12","Pomme de terre",null,null,null,null,null,null,null,null,null,null,null,null,"DA35","Concombre",null,null,null,null,null,null,null,"RATP","1 pack de 10 enveloppes déjà timbrées ou de 100 enveloppes non timbrées"]
["LMR13","Purée",null,null,null,null,null,null,null,null,null,null,null,null,"DA36","Confiture",null,null,null,null,null,null,null,"Roncière traiteur à Créteil","1 pack de 10 stylos à bille (encres noire et rouge; en plus ou en moins)"]
["LMR14","Radis",null,null,null,null,null,null,null,null,null,null,null,null,"DA37","Couscous",null,null,null,null,null,null,null,"SNCF","1 pack de 100 cure-dents"]
["LMR15","Riz",null,null,null,null,null,null,null,null,null,null,null,null,"DA38","Crème",null,null,null,null,null,null,null,"Sylvie coiffure","1 pack de 100 étiquettes"]
["LMR16","Salade",null,null,null,null,null,null,null,null,null,null,null,null,"DA39","Croque-monsieur",null,null,null,null,null,null,null,"Tabac Créteil soleil","1 pack de 100 sacs (aspirateur et poubelle)"]
["LMR17","Tomates ",null,null,null,null,null,null,null,null,null,null,null,null,"DA40","Dattes",null,null,null,null,null,null,null,"Tabac de la gare à Boissy-Saint-Léger","1 pack de 12 cartouches stylos-plume (en plus ou en moins)"]
["LSLM01","Cassoulet",null,null,null,null,null,null,null,null,null,null,null,null,"DA41","Dinde",null,null,null,null,null,null,null,"Tabac de la poste à Limeil-Brévannes","1 pack de 12 pots. 1 pot par matin (yaourts matin)"]
["LSLM02","Choucroute",null,null,null,null,null,null,null,null,null,null,null,null,"DA42","Eau",null,null,null,null,null,null,null,"Tabac Le Marigny à Limeil-Brévannes","1 pack de 12 rouleaux (papier hygiénique. En plus ou en moins)"]
["LSLM03","Chou-fleur",null,null,null,null,null,null,null,null,null,null,null,null,"DA43","Endives",null,null,null,null,null,null,null,"Tabac Liberté à Bonneuil-sur-Marne","1 pack de 2 crochets"]
["LSLM04","Choux de Bruxelles",null,null,null,null,null,null,null,null,null,null,null,null,"DA44","Figues",null,null,null,null,null,null,null,"Vendrisse Jacques","1 pack de 2 éponges"]
["LSLM05","Couscous",null,null,null,null,null,null,null,null,null,null,null,null,"DA45","Foie",null,null,null,null,null,null,null,"Vivet fleurs","1 pack de 2 loqueteaux"]
["LSLM06","Endives",null,null,null,null,null,null,null,null,null,null,null,null,"DA46","Frites",null,null,null,null,null,null,null,null,"1 pack de 2 paires (lacets)"]
["LSLM07","Haricots verts",null,null,null,null,null,null,null,null,null,null,null,null,"DA47","Fromage blanc dessert",null,null,null,null,null,null,null,null,"1 pack de 2 savons de 400 grammes chacun (bas, cuisine et linge)"]
["LSLM08","Maïs",null,null,null,null,null,null,null,null,null,null,null,null,"DA48","Fromage blanc matin",null,null,null,null,null,null,null,null,"1 pack de 2, 4, 8 piles (en plus ou en moins)"]
["LSLM09","Paella",null,null,null,null,null,null,null,null,null,null,null,null,"DA49","Fromage de tête",null,null,null,null,null,null,null,null,"1 pack de 3 berlingots (eau de Javel)"]
["LSLM10","Poireau",null,null,null,null,null,null,null,null,null,null,null,null,"DA50","Fromage râpé",null,null,null,null,null,null,null,null,"1 pack de 3 boîtes (allumettes)"]
["LSLM11","Pomme de terre",null,null,null,null,null,null,null,null,null,null,null,null,"DA51","Fromage soir",null,null,null,null,null,null,null,null,"1 pack de 3 cassettes"]
["LSLM12","Purée",null,null,null,null,null,null,null,null,null,null,null,null,"DA52","Fruits au sirop",null,null,null,null,null,null,null,null,"1 pack de 3 savonnettes de 125 grammes chacune (figure; en plus ou en moins)"]
["LSLM13","Quenelles",null,null,null,null,null,null,null,null,null,null,null,null,"DA53","Fruits de saison",null,null,null,null,null,null,null,null,"1 pack de 3 scotch brite (en plus ou en moins)"]
["LSLM14","Riz",null,null,null,null,null,null,null,null,null,null,null,null,"DA54","Gâteau de riz",null,null,null,null,null,null,null,null,"1 pack de 4 brosses à dents"]
["LSMJ01","Macédoine de légumes",null,null,null,null,null,null,null,null,null,null,null,null,"DA55","Gâteau de semoule",null,null,null,null,null,null,null,null,"1 pack de 4 pots pour le weekend end. 1 pot pour 1 repas"]
["LSMJ02","Petits pois",null,null,null,null,null,null,null,null,null,null,null,null,"DA56","Gâteaux apéritif",null,null,null,null,null,null,null,null,"1 pack de 4 pots. 1 pot par matin (yaourts matin)"]
["LSMJ03","Petits pois et jeunes carottes",null,null,null,null,null,null,null,null,null,null,null,null,"DA57","Gâteaux samedi et dimanche",null,null,null,null,null,null,null,null,"1 pack de 4 savons de 200 grammes chacun (bas, cuisine et linge)"]
["LSMJ04","Ratatouille",null,null,null,null,null,null,null,null,null,null,null,null,"DA58","Glaces",null,null,null,null,null,null,null,null,"1 pack de 4 stylos à bille (encres bleue et verte; en plus ou en moins)"]
["LSMJ05","Raviolis",null,null,null,null,null,null,null,null,null,null,null,null,"DA59","Gros sel",null,null,null,null,null,null,null,null,"1 pack de 6 pots. 3 pots par repas (petits suisses)"]
["LSMJ06","Tomates pelées",null,null,null,null,null,null,null,null,null,null,null,null,"DA60","Haricots verts",null,null,null,null,null,null,null,null,"1 pack de 8 paquets (papier hygiénique; en plus en en moins)"]
["LSV01","Asperges",null,null,null,null,null,null,null,null,null,null,null,null,"DA61","Huile",null,null,null,null,null,null,null,null,"1 pack de 8 rouleaux (papier hygiénique; en plus ou en moins)"]
["LSV02","Avocat",null,null,null,null,null,null,null,null,null,null,null,null,"DA62","Jambon",null,null,null,null,null,null,null,null,"1 paquet de ? (épingles à linge)"]
["LSV03","Betterave rouge",null,null,null,null,null,null,null,null,null,null,null,null,"DA63","Jambonneau",null,null,null,null,null,null,null,null,"1 paquet de 20 cigarettes"]
["LSV04","Carottes",null,null,null,null,null,null,null,null,null,null,null,null,"DA64","Lait",null,null,null,null,null,null,null,null,"1 paquet pour 2 repas"]
["LSV05","Céleri",null,null,null,null,null,null,null,null,null,null,null,null,"DA65","Légumes de couscous",null,null,null,null,null,null,null,null,"1 paquet pour 2 repas (1 ou 2 saucisses pour 1 repas)"]
["LSV06","Champignons",null,null,null,null,null,null,null,null,null,null,null,null,"DA66","Macédoine de légumes",null,null,null,null,null,null,null,null,"1 paquet pour 2 repas (salami;10 tranches pour 1 repas)"]
["LSV07","Concombre",null,null,null,null,null,null,null,null,null,null,null,null,"DA67","Maïs",null,null,null,null,null,null,null,null,"1 paquet pour 4 repas (dattes, figues et pruneaux)"]
["LSV08","Radis",null,null,null,null,null,null,null,null,null,null,null,null,"DA68","Mortadelle",null,null,null,null,null,null,null,null,"1 plaquette de 250 grammes (beurre;2 mensuelles maximum)"]
["LSV09","Salade",null,null,null,null,null,null,null,null,null,null,null,null,"DA69","Mousse au chocolat",null,null,null,null,null,null,null,null,"1 portion par soir (fromage soir)"]
["LSV10","Salsifis",null,null,null,null,null,null,null,null,null,null,null,null,"DA70","Œufs",null,null,null,null,null,null,null,null,"1 ramette de 200 feuilles (papier couleur imprimantes)"]
["LSV11","Tomates ",null,null,null,null,null,null,null,null,null,null,null,null,"DA71","Oranges",null,null,null,null,null,null,null,null,"1 ramette de 500 feuilles (papier blanc pour imprimantes)"]
["LWED01","Asperges",null,null,null,null,null,null,null,null,null,null,null,null,"DA72","Paella",null,null,null,null,null,null,null,null,"1 sac de 20 litres (terre)"]
["LWED02","Chips",null,null,null,null,null,null,null,null,null,null,null,null,"DA73","Pain",null,null,null,null,null,null,null,null,"1 sachet pour 2 repas"]
["LWED03","Frites",null,null,null,null,null,null,null,null,null,null,null,null,"DA74","Pâtes",null,null,null,null,null,null,null,null,"1 sachet pour 4 repas (crème)"]
["LWED04","Haricots verts",null,null,null,null,null,null,null,null,null,null,null,null,"DA75","Petits pois",null,null,null,null,null,null,null,null,"1 ticket unitaire"]
["LWES01","Pâtes à la sauce tomates",null,null,null,null,null,null,null,null,null,null,null,null,"DA76","Petits pois et jeunes carottes",null,null,null,null,null,null,null,null,"1 timbre (parti communiste français, syndicat C.G.T., timbres-poste)"]
["LWES02","Pâtes au beurre",null,null,null,null,null,null,null,null,null,null,null,null,"DA77","Petits suisses",null,null,null,null,null,null,null,null,"1 tranche pour 1 repas (viandes weekend end)"]
["LWES03","Pâtes au fromage râpé",null,null,null,null,null,null,null,null,null,null,null,null,"DA78","Pizza",null,null,null,null,null,null,null,null,"1 tube unitaire de 75, 100 ou 125 millilitres (dentifrice)"]
["O01","Armistice du 11 novembre 1918",null,null,null,null,null,null,null,null,null,null,null,null,"DA79","Poireau",null,null,null,null,null,null,null,null,"125 grammes pour 1 repas (bifteck haché de cheval)"]
["O02","Ascension",null,null,null,null,null,null,null,null,null,null,null,null,"DA80","Poisson",null,null,null,null,null,null,null,null,"20 frites pour 1 repas"]
["O03","Assomption",null,null,null,null,null,null,null,null,null,null,null,null,"DA81","Poivre gris",null,null,null,null,null,null,null,null,"25 grammes pour 1 repas (couscous, riz légume)"]
["O04","Fête du travail",null,null,null,null,null,null,null,null,null,null,null,null,"DA82","Pomme",null,null,null,null,null,null,null,null,"3 tranches pour 1 repas (roulade à la pistache, tête roulée)"]
["O05","Fête nationale",null,null,null,null,null,null,null,null,null,null,null,null,"DA83","Pomme de terre",null,null,null,null,null,null,null,null,"5 cuillères pour un repas (pâtes)"]
["O06","Jour de l'an",null,null,null,null,null,null,null,null,null,null,null,null,"DA84","Porc",null,null,null,null,null,null,null,null,"La paire (chaussures)"]
["O07","Lundi de Pâques",null,null,null,null,null,null,null,null,null,null,null,null,"DA85","Pruneaux",null,null,null,null,null,null,null,null,"Pack de ?"]
["O08","Lundi de Pentecôte",null,null,null,null,null,null,null,null,null,null,null,null,"DA86","Purée",null,null,null,null,null,null,null,null,"Pour 2 draps"]
["O09","Noël",null,null,null,null,null,null,null,null,null,null,null,null,"DA87","Quenelles",null,null,null,null,null,null,null,null,"Sans conditionnement"]
["O10","Pâques",null,null,null,null,null,null,null,null,null,null,null,null,"DA88","Quiche lorraine",null,null,null,null,null,null,null,null,"Unité"]
["O11","Pentecôte",null,null,null,null,null,null,null,null,null,null,null,null,"DA89","Radis",null,null,null,null,null,null,null,null,"Unité : 1 brin ou 1 pot (muguet)"]
["O12","Toussaint",null,null,null,null,null,null,null,null,null,null,null,null,"DA90","Ratatouille",null,null,null,null,null,null,null,null,"Unité : 1 par repas"]
["O13","Victoire du 08 mai 1945",null,null,null,null,null,null,null,null,null,null,null,null,"DA91","Raviolis",null,null,null,null,null,null,null,null,"Unité : 1 pot"]
["PC01","Janvier",null,null,null,null,null,null,null,null,null,null,null,null,"DA92","Riz dessert",null,null,null,null,null,null,null,null,"Unité : 1 pour 2 repas  (chou-fleur)"]
["PC02","Février",null,null,null,null,null,null,null,null,null,null,null,null,"DA93","Riz légume",null,null,null,null,null,null,null,null,"Unité : 1 pour 4 repas (ananas)"]
["PC03","Mars",null,null,null,null,null,null,null,null,null,null,null,null,"DA94","Rôti d'agneau",null,null,null,null,null,null,null,null,"Unité : 2 ou 4 pour 1 repas (clémentines, autres fruits)"]
["PC04","Avril",null,null,null,null,null,null,null,null,null,null,null,null,"DA95","Rôti de bœuf",null,null,null,null,null,null,null,null,"Unité : 2 pour 1 repas"]
["PC05","Mai",null,null,null,null,null,null,null,null,null,null,null,null,"DA96","Rôti de cheval"]
["PC06","Juin",null,null,null,null,null,null,null,null,null,null,null,null,"DA97","Rôti de porc"]
["PC07","Juillet",null,null,null,null,null,null,null,null,null,null,null,null,"DA98","Rôti de veau"]
["PC08","Août",null,null,null,null,null,null,null,null,null,null,null,null,"DA99","Roulade à la pistache"]
["PC09","Septembre",null,null,null,null,null,null,null,null,null,null,null,null,"DA100","Roulé au fromage"]
["PC10","Octobre",null,null,null,null,null,null,null,null,null,null,null,null,"DA101","Salade"]
["PC11","Novembre",null,null,null,null,null,null,null,null,null,null,null,null,"DA102","Salami"]
["PC12","Décembre",null,null,null,null,null,null,null,null,null,null,null,null,"DA103","Salsifis"]
["VMR01","Rôti d'agneau",null,null,null,null,null,null,null,null,null,null,null,null,"DA104","Sauce tomates"]
["VMR02","Rôti de bœuf",null,null,null,null,null,null,null,null,null,null,null,null,"DA105","Saucisses"]
["VMR03","Rôti de cheval",null,null,null,null,null,null,null,null,null,null,null,null,"DA106","Saucisson"]
["VMR04","Rôti de porc",null,null,null,null,null,null,null,null,null,null,null,null,"DA107","Sel fin"]
["VMR05","Rôti de veau",null,null,null,null,null,null,null,null,null,null,null,null,"DA108","Sucre"]
["VS01","Bifteck haché de bœuf",null,null,null,null,null,null,null,null,null,null,null,null,"DA109","Tapioca"]
["VS02","Bifteck haché de cheval",null,null,null,null,null,null,null,null,null,null,null,null,"DA110","Tête persillée"]
["VS03","Bifteck haché de veau",null,null,null,null,null,null,null,null,null,null,null,null,"DA111","Tête roulée"]
["VS04","Bouchée à la reine",null,null,null,null,null,null,null,null,null,null,null,null,"DA112","Thé"]
["VS05","Boudin",null,null,null,null,null,null,null,null,null,null,null,null,"DA113","Thon"]
["VS06","Cervelas",null,null,null,null,null,null,null,null,null,null,null,null,"DA114","Tomates"]
["VS07","Cœur",null,null,null,null,null,null,null,null,null,null,null,null,"DA115","Tomates pelées"]
["VS08","Croque-monsieur",null,null,null,null,null,null,null,null,null,null,null,null,"DA116","Veau"]
["VS09","Foie",null,null,null,null,null,null,null,null,null,null,null,null,"DA117","Vinaigre"]
["VS10","Fromage de tête",null,null,null,null,null,null,null,null,null,null,null,null,"DA118","Yaourts dessert"]
["VS11","Jambon",null,null,null,null,null,null,null,null,null,null,null,null,"DA119","Yaourts matin"]
["VS12","Jambonneau",null,null,null,null,null,null,null,null,null,null,null,null,"DB01","Abonnement Canal Plus"]
["VS13","Mortadelle",null,null,null,null,null,null,null,null,null,null,null,null,"DB02","Abonnement canal Satellite"]
["VS14","Œufs",null,null,null,null,null,null,null,null,null,null,null,null,"DB03","Abonnement Coopanet (Banque française de crédit coopératif)"]
["VS15","Pizza",null,null,null,null,null,null,null,null,null,null,null,null,"DB04","Actions caisse épargne"]
["VS16","Poisson",null,null,null,null,null,null,null,null,null,null,null,null,"DB05","Aspirateur"]
["VS17","Quiche lorraine",null,null,null,null,null,null,null,null,null,null,null,null,"DB06","Assurance accidents de la vie (caisse épargne)"]
["VS18","Roulade à la pistache",null,null,null,null,null,null,null,null,null,null,null,null,"DB07","Assurance incendie (caisse épargne)"]
["VS19","Roulé au fromage",null,null,null,null,null,null,null,null,null,null,null,null,"DB08","Assurance protection juridique (caisse épargne)"]
["VS20","Salami",null,null,null,null,null,null,null,null,null,null,null,null,"DB09","Autre matériel informatique"]
["VS21","Saucisses",null,null,null,null,null,null,null,null,null,null,null,null,"DB10","Autres dépenses bancaires"]
["VS22","Saucisson",null,null,null,null,null,null,null,null,null,null,null,null,"DB11","Cadeaux"]
["VS23","Tête persillée",null,null,null,null,null,null,null,null,null,null,null,null,"DB12","Carte amicale des locataires (Confédération nationale du logement)"]
["VS24","Tête roulée",null,null,null,null,null,null,null,null,null,null,null,null,"DB13","Cocotte minute"]
["VS25","Thon",null,null,null,null,null,null,null,null,null,null,null,null,"DB14","Congélateur"]
["VS26","Viande cassoulet",null,null,null,null,null,null,null,null,null,null,null,null,"DB15","Cuisinière"]
["VS27","Viande choucroute",null,null,null,null,null,null,null,null,null,null,null,null,"DB16","Électricité"]
["VS28","Viande paella",null,null,null,null,null,null,null,null,null,null,null,null,"DB17","Fer à repasser"]
["VWE01","Agneau",null,null,null,null,null,null,null,null,null,null,null,null,"DB18","Four à micro-ondes"]
["VWE02","Bœuf",null,null,null,null,null,null,null,null,null,null,null,null,"DB19","Friteuse à gaz"]
["VWE03","Cheval",null,null,null,null,null,null,null,null,null,null,null,null,"DB20","Friteuse électrique"]
["VWE04","Dinde",null,null,null,null,null,null,null,null,null,null,null,null,"DB21","Gaz"]
["VWE05","Poisson",null,null,null,null,null,null,null,null,null,null,null,null,"DB22","Graveur compact disc informatique"]
["VWE06","Porc",null,null,null,null,null,null,null,null,null,null,null,null,"DB23","Graveur compact disc vidéo"]
["VWE07","Veau",null,null,null,null,null,null,null,null,null,null,null,null,"DB24","Impôts locaux"]
[null,null,null,null,null,null,null,null,null,null,null,null,null,null,"DB25","Impôts sur le revenu des personnes physiques"]
[null,null,null,null,null,null,null,null,null,null,null,null,null,null,"DB26","Imprimantes à jet d'encre"]
[null,null,null,null,null,null,null,null,null,null,null,null,null,null,"DB27","Imprimantes laser"]
[null,null,null,null,null,null,null,null,null,null,null,null,null,null,"DB28","Livres bibliophiles"]
[null,null,null,null,null,null,null,null,null,null,null,null,null,null,"DB29","Livres informatiques"]
[null,null,null,null,null,null,null,null,null,null,null,null,null,null,"DB30","Logiciels informatiques"]
[null,null,null,null,null,null,null,null,null,null,null,null,null,null,"DB31","Loyer et charges"]
[null,null,null,null,null,null,null,null,null,null,null,null,null,null,"DB32","Machine à laver"]
[null,null,null,null,null,null,null,null,null,null,null,null,null,null,"DB33","Magnétoscope"]
[null,null,null,null,null,null,null,null,null,null,null,null,null,null,"DB34","Mutuelle"]
[null,null,null,null,null,null,null,null,null,null,null,null,null,null,"DB35","Ordinateurs de bureau"]
[null,null,null,null,null,null,null,null,null,null,null,null,null,null,"DB36","Ordinateurs portables"]
[null,null,null,null,null,null,null,null,null,null,null,null,null,null,"DB37","Prélèvements légaux"]
[null,null,null,null,null,null,null,null,null,null,null,null,null,null,"DB38","Protection de la maison (Protection 24)"]
[null,null,null,null,null,null,null,null,null,null,null,null,null,null,"DB39","Rasoir électrique"]
[null,null,null,null,null,null,null,null,null,null,null,null,null,null,"DB40","Redevance télévision"]
[null,null,null,null,null,null,null,null,null,null,null,null,null,null,"DB41","Réfrigérateur"]
[null,null,null,null,null,null,null,null,null,null,null,null,null,null,"DB42","Réparations"]
[null,null,null,null,null,null,null,null,null,null,null,null,null,null,"DB43","Restaurant"]
[null,null,null,null,null,null,null,null,null,null,null,null,null,null,"DB44","Téléphone fixe et Internet"]
[null,null,null,null,null,null,null,null,null,null,null,null,null,null,"DB45","Téléphone Orange"]
[null,null,null,null,null,null,null,null,null,null,null,null,null,null,"DB46","Téléphone portable"]
[null,null,null,null,null,null,null,null,null,null,null,null,null,null,"DB47","Télévision"]
[null,null,null,null,null,null,null,null,null,null,null,null,null,null,"DH01","Vacances"]
[null,null,null,null,null,null,null,null,null,null,null,null,null,null,"DH02","Virements de fonds"]
[null,null,null,null,null,null,null,null,null,null,null,null,null,null,"DH03","Autres dépenses horticoles"]
[null,null,null,null,null,null,null,null,null,null,null,null,null,null,"DH04","Cache-pots"]
[null,null,null,null,null,null,null,null,null,null,null,null,null,null,"DH05","Engrais"]
[null,null,null,null,null,null,null,null,null,null,null,null,null,null,"DH06","Fleurs"]
[null,null,null,null,null,null,null,null,null,null,null,null,null,null,"DH07","Muguet"]
[null,null,null,null,null,null,null,null,null,null,null,null,null,null,"DH08","Plantes"]
[null,null,null,null,null,null,null,null,null,null,null,null,null,null,"DH09","Pots à fleurs"]
[null,null,null,null,null,null,null,null,null,null,null,null,null,null,"DH10","Pots à plantes"]
[null,null,null,null,null,null,null,null,null,null,null,null,null,null,"DH11","Soucoupes"]
[null,null,null,null,null,null,null,null,null,null,null,null,null,null,"DM01","Terre"]
[null,null,null,null,null,null,null,null,null,null,null,null,null,null,"DM02","Tuteurs"]
[null,null,null,null,null,null,null,null,null,null,null,null,null,null,"DM03","Analyses"]
[null,null,null,null,null,null,null,null,null,null,null,null,null,null,"DM04","Autres dépenses médicales"]
[null,null,null,null,null,null,null,null,null,null,null,null,null,null,"DM05","Dentiste"]
[null,null,null,null,null,null,null,null,null,null,null,null,null,null,"DM06","Docteur dermatologue"]
[null,null,null,null,null,null,null,null,null,null,null,null,null,null,"DM07","Docteur généraliste"]
[null,null,null,null,null,null,null,null,null,null,null,null,null,null,"DM08","Docteur ophtalmologiste"]
[null,null,null,null,null,null,null,null,null,null,null,null,null,null,"DM09","Monture des lunettes"]
[null,null,null,null,null,null,null,null,null,null,null,null,null,null,"DM10","Pharmacie vignette blanche"]
[null,null,null,null,null,null,null,null,null,null,null,null,null,null,"DM11","Pharmacie vignette bleue"]
[null,null,null,null,null,null,null,null,null,null,null,null,null,null,"DM12","Pharmacie vignette orange"]
[null,null,null,null,null,null,null,null,null,null,null,null,null,null,"DM13","Prélèvements"]
[null,null,null,null,null,null,null,null,null,null,null,null,null,null,"DNA01","Radiographies"]
[null,null,null,null,null,null,null,null,null,null,null,null,null,null,"DNA02","Verres des lunettes"]
[null,null,null,null,null,null,null,null,null,null,null,null,null,null,"DNA03","Adaptateur chargeur Asus Darty"]
[null,null,null,null,null,null,null,null,null,null,null,null,null,null,"DNA04","Adaptateur chargeur Ludokado"]
[null,null,null,null,null,null,null,null,null,null,null,null,null,null,"DNA05","Ajax"]
[null,null,null,null,null,null,null,null,null,null,null,null,null,null,"DNA06","Allume-gaz"]
[null,null,null,null,null,null,null,null,null,null,null,null,null,null,"DNA07","Allumettes"]
[null,null,null,null,null,null,null,null,null,null,null,null,null,null,"DNA08","Ampoules électriques"]
[null,null,null,null,null,null,null,null,null,null,null,null,null,null,"DNA09","Ampoules halogènes"]
[null,null,null,null,null,null,null,null,null,null,null,null,null,null,"DNA10","Antimites"]
[null,null,null,null,null,null,null,null,null,null,null,null,null,null,"DNA11","Antitaches chaussures"]
[null,null,null,null,null,null,null,null,null,null,null,null,null,null,"DNA12","Argent perdu"]
[null,null,null,null,null,null,null,null,null,null,null,null,null,null,"DNA13","Argent perdu sur monnaie rendue"]
[null,null,null,null,null,null,null,null,null,null,null,null,null,null,"DNA14","Assouplissant pour le linge"]
[null,null,null,null,null,null,null,null,null,null,null,null,null,null,"DNA15","Autres dépenses non alimentaires"]
[null,null,null,null,null,null,null,null,null,null,null,null,null,null,"DNA16","Autres étrennes à répartir"]
[null,null,null,null,null,null,null,null,null,null,null,null,null,null,"DNA17","Balai ménage"]
[null,null,null,null,null,null,null,null,null,null,null,null,null,null,"DNA18","Billets de tombola"]
[null,null,null,null,null,null,null,null,null,null,null,null,null,null,"DNA19","Billets de train"]
[null,null,null,null,null,null,null,null,null,null,null,null,null,null,"DNA20","Bougies"]
[null,null,null,null,null,null,null,null,null,null,null,null,null,null,"DNA21","Bouteilles thermos"]
[null,null,null,null,null,null,null,null,null,null,null,null,null,null,"DNA22","Briquets"]
[null,null,null,null,null,null,null,null,null,null,null,null,null,null,"DNA23","Brise-jets"]
[null,null,null,null,null,null,null,null,null,null,null,null,null,null,"DNA24","Brosses à dents"]
[null,null,null,null,null,null,null,null,null,null,null,null,null,null,"DNA25","Câbles imprimantes"]
[null,null,null,null,null,null,null,null,null,null,null,null,null,null,"DNA26","Câbles réseau"]
[null,null,null,null,null,null,null,null,null,null,null,null,null,null,"DNA27","Cahiers"]
[null,null,null,null,null,null,null,null,null,null,null,null,null,null,"DNA28","Cantine"]
[null,null,null,null,null,null,null,null,null,null,null,null,null,null,"DNA29","Carte amicale des locataires (Confédération nationale du logement)"]
[null,null,null,null,null,null,null,null,null,null,null,null,null,null,"DNA30","Cartes d'anniversaire"]
[null,null,null,null,null,null,null,null,null,null,null,null,null,null,"DNA31","Cartes de fête"]
[null,null,null,null,null,null,null,null,null,null,null,null,null,null,"DNA32","Cartes de vacances"]
[null,null,null,null,null,null,null,null,null,null,null,null,null,null,"DNA33","Cartes de vœux"]
[null,null,null,null,null,null,null,null,null,null,null,null,null,null,"DNA34","Cartouches imprimantes"]
[null,null,null,null,null,null,null,null,null,null,null,null,null,null,"DNA35","Cartouches stylos-plume"]
[null,null,null,null,null,null,null,null,null,null,null,null,null,null,"DNA36","Cassettes dictaphone"]
[null,null,null,null,null,null,null,null,null,null,null,null,null,null,"DNA37","Cassettes vidéo"]
[null,null,null,null,null,null,null,null,null,null,null,null,null,null,"DNA38","Cendrier"]
[null,null,null,null,null,null,null,null,null,null,null,null,null,null,"DNA39","Chaussures"]
[null,null,null,null,null,null,null,null,null,null,null,null,null,null,"DNA40","Cigarettes déjà roulées"]
[null,null,null,null,null,null,null,null,null,null,null,null,null,null,"DNA41","Cinéma"]
[null,null,null,null,null,null,null,null,null,null,null,null,null,null,"DNA42","Cirage"]
[null,null,null,null,null,null,null,null,null,null,null,null,null,null,"DNA43","Cirque"]
[null,null,null,null,null,null,null,null,null,null,null,null,null,null,"DNA44","Ciseaux"]
[null,null,null,null,null,null,null,null,null,null,null,null,null,null,"DNA45","Clenches"]
[null,null,null,null,null,null,null,null,null,null,null,null,null,null,"DNA46","Coiffeur"]
[null,null,null,null,null,null,null,null,null,null,null,null,null,null,"DNA47","Colle super glu"]
[null,null,null,null,null,null,null,null,null,null,null,null,null,null,"DNA48","Collectes"]
[null,null,null,null,null,null,null,null,null,null,null,null,null,null,"DNA49","Compact disc rom informatique"]
[null,null,null,null,null,null,null,null,null,null,null,null,null,null,"DNA50","Compact disc rom vidéo"]
[null,null,null,null,null,null,null,null,null,null,null,null,null,null,"DNA51","Corrector liquide"]
[null,null,null,null,null,null,null,null,null,null,null,null,null,null,"DNA52","Couteau électrique"]
[null,null,null,null,null,null,null,null,null,null,null,null,null,null,"DNA53","Crochets triangles"]
[null,null,null,null,null,null,null,null,null,null,null,null,null,null,"DNA54","Cure-dents"]
[null,null,null,null,null,null,null,null,null,null,null,null,null,null,"DNA55","Décap'four"]
[null,null,null,null,null,null,null,null,null,null,null,null,null,null,"DNA56","Dentifrice"]
[null,null,null,null,null,null,null,null,null,null,null,null,null,null,"DNA57","Déodorant corporel"]
[null,null,null,null,null,null,null,null,null,null,null,null,null,null,"DNA58","Déodorant maison"]
[null,null,null,null,null,null,null,null,null,null,null,null,null,null,"DNA59","Dessous de plat"]
[null,null,null,null,null,null,null,null,null,null,null,null,null,null,"DNA60","Destop"]
[null,null,null,null,null,null,null,null,null,null,null,null,null,null,"DNA61","Détartrant water closets"]
[null,null,null,null,null,null,null,null,null,null,null,null,null,null,"DNA62","Dévidoir scotch"]
[null,null,null,null,null,null,null,null,null,null,null,null,null,null,"DNA63","Eau de Javel"]
[null,null,null,null,null,null,null,null,null,null,null,null,null,null,"DNA64","Eau de toilette"]
[null,null,null,null,null,null,null,null,null,null,null,null,null,null,"DNA65","Élastiques"]
[null,null,null,null,null,null,null,null,null,null,null,null,null,null,"DNA66","Enrouleuse à cigarettes"]
[null,null,null,null,null,null,null,null,null,null,null,null,null,null,"DNA67","Enveloppes pré-timbrées ou non timbrées"]
[null,null,null,null,null,null,null,null,null,null,null,null,null,null,"DNA68","Envois recommandés avec accusé de réception"]
[null,null,null,null,null,null,null,null,null,null,null,null,null,null,"DNA69","Éphéméride"]
[null,null,null,null,null,null,null,null,null,null,null,null,null,null,"DNA70","Épingles à linge"]
[null,null,null,null,null,null,null,null,null,null,null,null,null,null,"DNA71","Éponges pour la table"]
[null,null,null,null,null,null,null,null,null,null,null,null,null,null,"DNA72","Éponges pour le ménage"]
[null,null,null,null,null,null,null,null,null,null,null,null,null,null,"DNA73","Essence pour briquets Zippo"]
[null,null,null,null,null,null,null,null,null,null,null,null,null,null,"DNA74","Essoreuse à salade"]
[null,null,null,null,null,null,null,null,null,null,null,null,null,null,"DNA75","Étendoirs à linge (mural et sur pieds)"]
[null,null,null,null,null,null,null,null,null,null,null,null,null,null,"DNA76","Étiquettes pour autres usages"]
[null,null,null,null,null,null,null,null,null,null,null,null,null,null,"DNA77","Étiquettes pour cassettes"]
[null,null,null,null,null,null,null,null,null,null,null,null,null,null,"DNA78","Étiquettes pour compact disc rom"]
[null,null,null,null,null,null,null,null,null,null,null,null,null,null,"DNA79","Étrennes des éboueurs"]
[null,null,null,null,null,null,null,null,null,null,null,null,null,null,"DNA80","Étrennes des pompiers"]
[null,null,null,null,null,null,null,null,null,null,null,null,null,null,"DNA81","Étrennes du facteur"]
[null,null,null,null,null,null,null,null,null,null,null,null,null,null,"DNA82","Étrennes du gardien"]
[null,null,null,null,null,null,null,null,null,null,null,null,null,null,"DNA83","Étuis à cigarettes"]
[null,null,null,null,null,null,null,null,null,null,null,null,null,null,"DNA84","Fer à repasser"]
[null,null,null,null,null,null,null,null,null,null,null,null,null,null,"DNA85","Feuilles à cigarettes"]
[null,null,null,null,null,null,null,null,null,null,null,null,null,null,"DNA86","Frais d'essence"]
[null,null,null,null,null,null,null,null,null,null,null,null,null,null,"DNA87","Friteuse à gaz"]
[null,null,null,null,null,null,null,null,null,null,null,null,null,null,"DNA88","Friteuse électrique"]
[null,null,null,null,null,null,null,null,null,null,null,null,null,null,"DNA89","Fusibles 10 ampères"]
[null,null,null,null,null,null,null,null,null,null,null,null,null,null,"DNA90","Fusibles 20 ampères"]
[null,null,null,null,null,null,null,null,null,null,null,null,null,null,"DNA91","Gaz pour allume-gaz"]
[null,null,null,null,null,null,null,null,null,null,null,null,null,null,"DNA92","Gaz pour briquet Dupont"]
[null,null,null,null,null,null,null,null,null,null,null,null,null,null,"DNA93","Gaz pour briquets Laguiole"]
[null,null,null,null,null,null,null,null,null,null,null,null,null,null,"DNA94","Insecticide"]
[null,null,null,null,null,null,null,null,null,null,null,null,null,null,"DNA95","Interrupteur lampe halogène"]
[null,null,null,null,null,null,null,null,null,null,null,null,null,null,"DNA96","Lacets"]
[null,null,null,null,null,null,null,null,null,null,null,null,null,null,"DNA97","Lames rasoir électrique"]
[null,null,null,null,null,null,null,null,null,null,null,null,null,null,"DNA98","Lampe halogène"]
[null,null,null,null,null,null,null,null,null,null,null,null,null,null,"DNA99","Lampe torche"]
[null,null,null,null,null,null,null,null,null,null,null,null,null,null,"DNA100","Lavage des draps"]
[null,null,null,null,null,null,null,null,null,null,null,null,null,null,"DNA101","Lessive pour le linge"]
[null,null,null,null,null,null,null,null,null,null,null,null,null,null,"DNA102","Linge"]
[null,null,null,null,null,null,null,null,null,null,null,null,null,null,"DNA103","Linge de lit"]
[null,null,null,null,null,null,null,null,null,null,null,null,null,null,"DNA104","Linge domestique"]
[null,null,null,null,null,null,null,null,null,null,null,null,null,null,"DNA105","Livres informatiques"]
[null,null,null,null,null,null,null,null,null,null,null,null,null,null,"DNA106","Logiciels informatiques"]
[null,null,null,null,null,null,null,null,null,null,null,null,null,null,"DNA107","Loisirs"]
[null,null,null,null,null,null,null,null,null,null,null,null,null,null,"DNA108","Loqueteaux"]
[null,null,null,null,null,null,null,null,null,null,null,null,null,null,"DNA109","Matériel à couture"]
[null,null,null,null,null,null,null,null,null,null,null,null,null,null,"DNA110","Matériel de cuisine"]
[null,null,null,null,null,null,null,null,null,null,null,null,null,null,"DNA111","Matériel informatique"]
[null,null,null,null,null,null,null,null,null,null,null,null,null,null,"DNA112","Minuteurs"]
[null,null,null,null,null,null,null,null,null,null,null,null,null,null,"DNA113","Nappes de tables"]
[null,null,null,null,null,null,null,null,null,null,null,null,null,null,"DNA114","Nettoyage des vêtements"]
[null,null,null,null,null,null,null,null,null,null,null,null,null,null,"DNA115","O'Cédar"]
[null,null,null,null,null,null,null,null,null,null,null,null,null,null,"DNA116","Ouvre-boîtes électrique"]
[null,null,null,null,null,null,null,null,null,null,null,null,null,null,"DNA117","Papier à lettres"]
[null,null,null,null,null,null,null,null,null,null,null,null,null,null,"DNA118","Papier aluminium"]
[null,null,null,null,null,null,null,null,null,null,null,null,null,null,"DNA119","Papier blanc imprimantes"]
[null,null,null,null,null,null,null,null,null,null,null,null,null,null,"DNA120","Papier couleur imprimantes"]
[null,null,null,null,null,null,null,null,null,null,null,null,null,null,"DNA121","Papier hygiénique"]
[null,null,null,null,null,null,null,null,null,null,null,null,null,null,"DNA122","Parapluie"]
[null,null,null,null,null,null,null,null,null,null,null,null,null,null,"DNA123","Parti communiste français"]
[null,null,null,null,null,null,null,null,null,null,null,null,null,null,"DNA124","Pelle ménage"]
[null,null,null,null,null,null,null,null,null,null,null,null,null,null,"DNA125","Pétrole Hahn"]
[null,null,null,null,null,null,null,null,null,null,null,null,null,null,"DNA126","Pierres à briquets Zippo"]
[null,null,null,null,null,null,null,null,null,null,null,null,null,null,"DNA127","Pile calculatrice"]
[null,null,null,null,null,null,null,null,null,null,null,null,null,null,"DNA128","Pile claviers"]
[null,null,null,null,null,null,null,null,null,null,null,null,null,null,"DNA129","Pile dictaphone"]
[null,null,null,null,null,null,null,null,null,null,null,null,null,null,"DNA130","Pile lampe torche"]
[null,null,null,null,null,null,null,null,null,null,null,null,null,null,"DNA131","Pile minuteurs"]
[null,null,null,null,null,null,null,null,null,null,null,null,null,null,"DNA132","Pile montre"]
[null,null,null,null,null,null,null,null,null,null,null,null,null,null,"DNA133","Pile pendules"]
[null,null,null,null,null,null,null,null,null,null,null,null,null,null,"DNA134","Pile réveils"]
[null,null,null,null,null,null,null,null,null,null,null,null,null,null,"DNA135","Pile souris"]
[null,null,null,null,null,null,null,null,null,null,null,null,null,null,"DNA136","Pile télécommande décodeur Orange"]
[null,null,null,null,null,null,null,null,null,null,null,null,null,null,"DNA137","Pile télécommande magnétoscope"]
[null,null,null,null,null,null,null,null,null,null,null,null,null,null,"DNA138","Pile télécommande récepteur TNT"]
[null,null,null,null,null,null,null,null,null,null,null,null,null,null,"DNA139","Pile télécommande récepteur TNT HD"]
[null,null,null,null,null,null,null,null,null,null,null,null,null,null,"DNA140","Pile télécommande télévision"]
[null,null,null,null,null,null,null,null,null,null,null,null,null,null,"DNA141","Pile transistors"]
[null,null,null,null,null,null,null,null,null,null,null,null,null,null,"DNA142","Poubelle"]
[null,null,null,null,null,null,null,null,null,null,null,null,null,null,"DNA143","Pourboires"]
[null,null,null,null,null,null,null,null,null,null,null,null,null,null,"DNA144","Produit liquide plancher"]
[null,null,null,null,null,null,null,null,null,null,null,null,null,null,"DNA145","Produit liquide vaisselle"]
[null,null,null,null,null,null,null,null,null,null,null,null,null,null,"DNA146","Produit liquide vitres"]
[null,null,null,null,null,null,null,null,null,null,null,null,null,null,"DNA147","Programme télévision"]
[null,null,null,null,null,null,null,null,null,null,null,null,null,null,"DNA148","Radiateur électrique"]
[null,null,null,null,null,null,null,null,null,null,null,null,null,null,"DNA149","Recharge bloc éphéméride"]
[null,null,null,null,null,null,null,null,null,null,null,null,null,null,"DNA150","Recharge cure-dents"]
[null,null,null,null,null,null,null,null,null,null,null,null,null,null,"DNA151","Réparations"]
[null,null,null,null,null,null,null,null,null,null,null,null,null,null,"DNA152","Retouche vêtements"]
[null,null,null,null,null,null,null,null,null,null,null,null,null,null,"DNA153","Rouleaux pour calculatrice"]
[null,null,null,null,null,null,null,null,null,null,null,null,null,null,"DNA154","Ruban d'imprimante"]
[null,null,null,null,null,null,null,null,null,null,null,null,null,null,"DNA155","Sacs à aspirateur"]
[null,null,null,null,null,null,null,null,null,null,null,null,null,null,"DNA156","Sacs à poubelle"]
[null,null,null,null,null,null,null,null,null,null,null,null,null,null,"DNA157","Savon noir"]
[null,null,null,null,null,null,null,null,null,null,null,null,null,null,"DNA158","Savon pour la cuisine"]
[null,null,null,null,null,null,null,null,null,null,null,null,null,null,"DNA159","Savon pour le bas"]
[null,null,null,null,null,null,null,null,null,null,null,null,null,null,"DNA160","Savon pour le linge"]
[null,null,null,null,null,null,null,null,null,null,null,null,null,null,"DNA161","Savonnette figure"]
[null,null,null,null,null,null,null,null,null,null,null,null,null,null,"DNA162","Scotch"]
[null,null,null,null,null,null,null,null,null,null,null,null,null,null,"DNA163","Scotch brite"]
[null,null,null,null,null,null,null,null,null,null,null,null,null,null,"DNA164","Serpillières"]
[null,null,null,null,null,null,null,null,null,null,null,null,null,null,"DNA165","Shampooing"]
[null,null,null,null,null,null,null,null,null,null,null,null,null,null,"DNA166","Stylos à bille encre bleue"]
[null,null,null,null,null,null,null,null,null,null,null,null,null,null,"DNA167","Stylos à bille encre noire"]
[null,null,null,null,null,null,null,null,null,null,null,null,null,null,"DNA168","Stylos à bille encre rouge"]
[null,null,null,null,null,null,null,null,null,null,null,null,null,null,"DNA169","Stylos à bille encre verte"]
[null,null,null,null,null,null,null,null,null,null,null,null,null,null,"DNA170","Stylos-plume"]
[null,null,null,null,null,null,null,null,null,null,null,null,null,null,"DNA171","Syndicat C.G.T."]
[null,null,null,null,null,null,null,null,null,null,null,null,null,null,"DNA172","Tabac pour les cigarettes"]
[null,null,null,null,null,null,null,null,null,null,null,null,null,null,"DNA173","Taxi"]
[null,null,null,null,null,null,null,null,null,null,null,null,null,null,"DNA174","Théâtre"]
[null,null,null,null,null,null,null,null,null,null,null,null,null,null,"DNA175","Tickets de bus"]
[null,null,null,null,null,null,null,null,null,null,null,null,null,null,"DNA176","Tickets de métro"]
[null,null,null,null,null,null,null,null,null,null,null,null,null,null,"DNA177","Tickets de R.E.R."]
[null,null,null,null,null,null,null,null,null,null,null,null,null,null,"DNA178","Tickets tous transports"]
[null,null,null,null,null,null,null,null,null,null,null,null,null,null,"DNA179","Timbres-poste"]
[null,null,null,null,null,null,null,null,null,null,null,null,null,null,"DNA180","Toners imprimante Brother"]
[null,null,null,null,null,null,null,null,null,null,null,null,null,null,"DNA181","Trombones"]
[null,null,null,null,null,null,null,null,null,null,null,null,null,null,"DNA182","Tuyau à gaz cuisinière"]
[null,null,null,null,null,null,null,null,null,null,null,null,null,null,"DNA183","Vernis à ongles"]
[null,null,null,null,null,null,null,null,null,null,null,null,null,null,"RB01","Vêtements"]
[null,null,null,null,null,null,null,null,null,null,null,null,null,null,"RB02","Vinaigre anticalcaire"]
[null,null,null,null,null,null,null,null,null,null,null,null,null,null,"RB03","Autres recettes bancaires"]
[null,null,null,null,null,null,null,null,null,null,null,null,null,null,"RB04","Mutuelle"]
[null,null,null,null,null,null,null,null,null,null,null,null,null,null,"RB05","Pension caisse nationale d'assurance vieillesse"]
[null,null,null,null,null,null,null,null,null,null,null,null,null,null,"RM01","Pension caisse nationale des retraites des agents des collectivités locales"]
[null,null,null,null,null,null,null,null,null,null,null,null,null,null,"RM02","Sécurité sociale"]
[null,null,null,null,null,null,null,null,null,null,null,null,null,null,"RM03","Mutuelle analyses"]
[null,null,null,null,null,null,null,null,null,null,null,null,null,null,"RM04","Mutuelle autres dépenses médicales"]
[null,null,null,null,null,null,null,null,null,null,null,null,null,null,"RM05","Mutuelle dentiste"]
[null,null,null,null,null,null,null,null,null,null,null,null,null,null,"RM06","Mutuelle docteur dermatologue"]
[null,null,null,null,null,null,null,null,null,null,null,null,null,null,"RM07","Mutuelle docteur généraliste"]
[null,null,null,null,null,null,null,null,null,null,null,null,null,null,"RM08","Mutuelle docteur ophtalmologiste"]
[null,null,null,null,null,null,null,null,null,null,null,null,null,null,"RM09","Mutuelle forfait monture des lunettes"]
[null,null,null,null,null,null,null,null,null,null,null,null,null,null,"RM10","Mutuelle forfait verre des lunettes"]
[null,null,null,null,null,null,null,null,null,null,null,null,null,null,"RM11","Mutuelle monture des lunettes"]
[null,null,null,null,null,null,null,null,null,null,null,null,null,null,"RM12","Mutuelle pharmacie vignette blanche"]
[null,null,null,null,null,null,null,null,null,null,null,null,null,null,"RM13","Mutuelle pharmacie vignette bleue"]
[null,null,null,null,null,null,null,null,null,null,null,null,null,null,"RM14","Mutuelle pharmacie vignette orange"]
[null,null,null,null,null,null,null,null,null,null,null,null,null,null,"RM15","Mutuelle prélèvements"]
[null,null,null,null,null,null,null,null,null,null,null,null,null,null,"RM16","Mutuelle radiographies"]
[null,null,null,null,null,null,null,null,null,null,null,null,null,null,"RM17","Mutuelle verres des lunettes"]
[null,null,null,null,null,null,null,null,null,null,null,null,null,null,"RM18","Sécurité sociale analyses"]
[null,null,null,null,null,null,null,null,null,null,null,null,null,null,"RM19","Sécurité sociale autres dépenses médicales"]
[null,null,null,null,null,null,null,null,null,null,null,null,null,null,"RM20","Sécurité sociale dentiste"]
[null,null,null,null,null,null,null,null,null,null,null,null,null,null,"RM21","Sécurité sociale docteur dermatologue"]
[null,null,null,null,null,null,null,null,null,null,null,null,null,null,"RM22","Sécurité sociale docteur généraliste"]
[null,null,null,null,null,null,null,null,null,null,null,null,null,null,"RM23","Sécurité sociale docteur ophtalmologiste"]
[null,null,null,null,null,null,null,null,null,null,null,null,null,null,"RM24","Sécurité sociale monture des lunettes"]
[null,null,null,null,null,null,null,null,null,null,null,null,null,null,"RM25","Sécurité sociale pharmacie vignette blanche"]
[null,null,null,null,null,null,null,null,null,null,null,null,null,null,"RM26","Sécurité sociale pharmacie vignette bleue"]
[null,null,null,null,null,null,null,null,null,null,null,null,null,null,"RM27","Sécurité sociale pharmacie vignette orange"]
[null,null,null,null,null,null,null,null,null,null,null,null,null,null,"RM28","Sécurité sociale prélèvements"]
[null,null,null,null,null,null,null,null,null,null,null,null,null,null,"RN01","Sécurité sociale radiographies"]
[null,null,null,null,null,null,null,null,null,null,null,null,null,null,"RN02","Sécurité sociale verres des lunettes"]
[null,null,null,null,null,null,null,null,null,null,null,null,null,null,"RN03","Argent emprunté à Bot Novacovici"]
[null,null,null,null,null,null,null,null,null,null,null,null,null,null,"RN04","Argent emprunté à Fafa"]
[null,null,null,null,null,null,null,null,null,null,null,null,null,null,"RN05","Argent emprunté à Joly Marc"]
[null,null,null,null,null,null,null,null,null,null,null,null,null,null,"RN06","Argent emprunté à Ray Claude"]
[null,null,null,null,null,null,null,null,null,null,null,null,null,null,"RN07","Argent emprunté à Vendrisse Jacques"]
[null,null,null,null,null,null,null,null,null,null,null,null,null,null,"RN08","Argent trouvé"]
[null,null,null,null,null,null,null,null,null,null,null,null,null,null,"RN09","Autres recettes numéraires"]
[null,null,null,null,null,null,null,null,null,null,null,null,null,null,"RN10","Fidélité Carrefour"]
[null,null,null,null,null,null,null,null,null,null,null,null,null,null,"RN11","Fidélité FNAC"]
[null,null,null,null,null,null,null,null,null,null,null,null,null,null,"RN12","Fidélité Géant Casino"]
[null,null,null,null,null,null,null,null,null,null,null,null,null,null,"RN13","Fidélité Gémo"]
[null,null,null,null,null,null,null,null,null,null,null,null,null,null,"RN14","Fidélité Leclerc"]
[null,null,null,null,null,null,null,null,null,null,null,null,null,null,"RN15","Remboursement argent prêté à des tiers"]
[null,null,null,null,null,null,null,null,null,null,null,null,null,null,"RN16","Trop perçu sur monnaie rendue"]
[null,null,null,null,null,null,null,null,null,null,null,null,null,null,"RN17","Virements de fonds"]
[]
[]
[]
[]
[]
[]
[]
[]
[null,null,null,null,null,null,null,null,null,null,null,null,null,null,","]

{"sheet":"Accueil","index":1,"n_rows":7,"n_cols":4,"rows_kept":7,"cut":false,"hidden":false,"merged":[]}
["Feuille accueil."]
[]
[]
[]
[null,null,null,"DMR"]
[]
[null,null,null,"DMR"]

{"sheet":"S R M","index":2,"n_rows":22,"n_cols":13,"rows_kept":22,"cut":false,"hidden":false,"merged":[]}
["Saisie des référentiels menus."]
[]
["Numéro référentiels menus",{"$f":"MAX(IF(TabRéfMenus[Titre référentiels menus]=$B$5,TabRéfMenus[Numéro référentiels menus]))+1","v":2},"Numéro menu","Titre menu","Intitulé","Code légume","Code légume deux"]
["Code titre référentiels menus","CTRM01"]
["Titre référentiels menus",{"$f":"IFERROR(INDEX(Titre_référentiels_menus,MATCH(B4,Code_titre_référentiels_menus,0)),\"-\")","v":"DMR"},null,"Menu midi retraite","0004-LMR",{"$f":"INDEX(TabRéfMenus[],MATCH($E$5,Intitulé,0),2)","v":{"$error":"#REF!"}},{"$f":"INDEX(TabRéfMenus[],MATCH($E$5,Intitulé,0),3)","v":{"$error":"#REF!"}},{"$f":"INDEX(TabRéfMenus[],MATCH($E$5,Intitulé,0),4)","v":{"$error":"#REF!"}},{"$f":"INDEX(TabRéfMenus[],MATCH($E$5,Intitulé,0),5)","v":{"$error":"#REF!"}},{"$f":"INDEX(TabRéfMenus[],MATCH($E$5,Intitulé,0),6)","v":{"$error":"#REF!"}},{"$f":"INDEX(TabRéfMenus[],MATCH($E$5,Intitulé,0),7)","v":{"$error":"#REF!"}},{"$f":"INDEX(TabRéfMenus[],MATCH($E$5,Intitulé,0),8)","v":{"$error":"#REF!"}},{"$f":"INDEX(TabRéfMenus[],MATCH($E$5,Intitulé,0),9)","v":{"$error":"#REF!"}}]
["Liste code référentiels menus","DMR01"]
["Liste nom référentiels menus",{"$f":"IFERROR(INDEX(Liste_nom_référentiels_menus,MATCH($B$6,Codes,0)),\"-\")","v":"Pomme"}]
["Code jour référentiels menus","CJRM05"]
["Jour référentiels menus",{"$f":"IFERROR(INDEX(Jour_référentiels_menus,MATCH($B$8,Code_jour_référentiels_menus,0)),\"-\")","v":"Lundi à vendredi midis"}]
["Code conditionnement référentiels menus","CCRM16"]
["Conditionnement référentiels menus",{"$f":"IFERROR(INDEX(Conditionnement_référentiels_menus,MATCH($B$10,Code_conditionnement_référentiels_menus,0)),\"-\")","v":"1 sachet de 1,5, 2 ou 3 kilogrammes. 1 pomme pour 1 repas"}]
["Code destination référentiels menus","CDRM01"]
["Destination référentiels menus",{"$f":"IFERROR(INDEX(Destination_référentiels_menus,MATCH($B$12,Code_destination_référentiels_menus,0)),\"-\")","v":"Menu journalier"}]
["Code période concernée menus"]
["Période concernée menus",{"$f":"IFERROR(INDEX(Période_concernée_menus,MATCH($B$14,Code_période_concernée_menus,0)),\"-\")","v":"-"}]
["Code période viandes week-end"]
["Période viande week-end",{"$f":"IFERROR(INDEX(Période_viandes_week_end,MATCH($B$16,Code_période_viandes_week_end,0)),\"-\")","v":"-"}]
["Date création référentiels menus","2018-10-05"]
["À modifier","Oui"]
[]
[null,null,"intitulé"]
[null,"noms définis:TabRéfMenus,intitulé","=DECALER('Tableau référentiels menus'!$A$2;0;0;NBVAL('Tableau référentiels menus'!$A:$A)-1)"]

{"sheet":"Tableau référentiels menus","index":3,"n_rows":311,"n_cols":17,"rows_kept":311,"cut":false,"hidden":false,"merged":[]}
["Intitulé","Numéro référentiels menus","Titre référentiels menus","Liste code référentiels menus","Liste nom référentiels menus","Code jour référentiels menus","Jour référentiels menus","Code conditionnement référentiels menus","Conditionnement référentiels menus","Code destination référentiels menus","Destination référentiels menus","Code période concernée menus","Période concernée menus","Code période viande week-end","Période viande week-end","Date création référentiels menus","À modifier"]
[{"$f":"TEXT(TabRéfMenus[Numéro référentiels menus],\"0000\") & \"-\" & TabRéfMenus[Titre référentiels menus]","v":"0001-DMR"},1,"DMR","DMR01","Pomme","CJRM05","Lundi à vendredi midis","CCRM16","1 sachet de 1,5, 2 ou 3 kilogrammes. 1 pomme pour 1 repas","CDRM02","Menu midi retraite",null,null,null,"-",null,"Non"]
[{"$f":"TEXT(TabRéfMenus[Numéro référentiels menus],\"0000\") & \"-\" & TabRéfMenus[Titre référentiels menus]","v":"0001-DS"},1,"DS","DS01","Pomme","CJRM06","Lundi à vendredi soirs","CCRM16","1 sachet de 1,5, 2 ou 3 kilogrammes. 1 pomme pour 1 repas","CDRM01","Menu journalier",null,"-",null,"-","2018-10-05","Non"]
[{"$f":"TEXT(TabRéfMenus[Numéro référentiels menus],\"0000\") & \"-\" & TabRéfMenus[Titre référentiels menus]","v":"0001-DWE"},1,"DWE","DWE01","Ananas","CJRM10","Samedi et dimanche midis et soirs","CCRM30","Unité : 1 pour 4 repas","CDRM01","Menu journalier",null,"-",null,"-","2018-10-05","Non"]
[{"$f":"TEXT(TabRéfMenus[Numéro référentiels menus],\"0000\") & \"-\" & TabRéfMenus[Titre référentiels menus]","v":"0002-DWE"},2,"DWE","DWE02","Autres fruits","CJRM10","Samedi et dimanche midis et soirs","CCRM31","Unité : 2 à 4 pour 1 repas","CDRM01","Menu journalier",null,"-",null,"-","2018-10-06","Non"]
[{"$f":"TEXT(TabRéfMenus[Numéro référentiels menus],\"0000\") & \"-\" & TabRéfMenus[Titre référentiels menus]","v":"0003-DWE"},3,"DWE","DWE03","Avocats","CJRM10","Samedi et dimanche midis et soirs","CCRM28","Unité : 1 pour 1 repas","CDRM01","Menu journalier",null,"-",null,"-","2018-10-06","Non"]
[{"$f":"TEXT(TabRéfMenus[Numéro référentiels menus],\"0000\") & \"-\" & TabRéfMenus[Titre référentiels menus]","v":"0004-DWE"},4,"DWE","DWE04","Bananes","CJRM10","Samedi et dimanche midis et soirs","CCRM28","Unité : 1 pour 1 repas","CDRM01","Menu journalier",null,"-",null,"-","2018-10-06","Non"]
[{"$f":"TEXT(TabRéfMenus[Numéro référentiels menus],\"0000\") & \"-\" & TabRéfMenus[Titre référentiels menus]","v":"0005-DWE"},5,"DWE","DWE05","Clémentines","CJRM10","Samedi et dimanche midis et soirs","CCRM31","Unité : 2 à 4 pour 1 repas","CDRM01","Menu journalier",null,"-",null,"-","2018-10-06","Non"]
[{"$f":"TEXT(TabRéfMenus[Numéro référentiels menus],\"0000\") & \"-\" & TabRéfMenus[Titre référentiels menus]","v":"0006-DWE"},6,"DWE","DWE06","Crème","CJRM10","Samedi et dimanche midis et soirs","CCRM18","1 sachet pour 4 repas","CDRM01","Menu journalier",null,"-",null,"-","2018-10-06","Non"]
[{"$f":"TEXT(TabRéfMenus[Numéro référentiels menus],\"0000\") & \"-\" & TabRéfMenus[Titre référentiels menus]","v":"0007-DWE"},7,"DWE","DWE07","Dattes","CJRM10","Samedi et dimanche midis et soirs","CCRM15","1 paquet pour 4 repas","CDRM01","Menu journalier",null,"-",null,"-","2018-10-07","Non"]
[{"$f":"TEXT(TabRéfMenus[Numéro référentiels menus],\"0000\") & \"-\" & TabRéfMenus[Titre référentiels menus]","v":"0008-DWE"},8,"DWE","DWE08","Figues","CJRM10","Samedi et dimanche midis et soirs","CCRM15","1 paquet pour 4 repas","CDRM01","Menu journalier",null,"-",null,"-","2018-10-07","Non"]
[{"$f":"TEXT(TabRéfMenus[Numéro référentiels menus],\"0000\") & \"-\" & TabRéfMenus[Titre référentiels menus]","v":"0009-DWE"},9,"DWE","DWE09","Fromage blanc","CJRM10","Samedi et dimanche midis et soirs","CCRM10","1 pack de 4 pots pour le week-end. 1 pot pour 1 repas","CDRM01","Menu journalier",null,"-",null,"-","2018-10-07","Non"]
[{"$f":"TEXT(TabRéfMenus[Numéro référentiels menus],\"0000\") & \"-\" & TabRéfMenus[Titre référentiels menus]","v":"0010-DWE"},10,"DWE","DWE10","Fruits au sirop","CJRM10","Samedi et dimanche midis et soirs","CCRM04","1 boîte pour 1 repas","CDRM01","Menu journalier",null,"-",null,"-","2018-10-07","Non"]
[{"$f":"TEXT(TabRéfMenus[Numéro référentiels menus],\"0000\") & \"-\" & TabRéfMenus[Titre référentiels menus]","v":"0011-DWE"},11,"DWE","DWE11","Fruits de saison","CJRM10","Samedi et dimanche midis et soirs","CCRM31","Unité : 2 à 4 pour 1 repas","CDRM01","Menu journalier",null,"-",null,"-","2018-10-07","Non"]
[{"$f":"TEXT(TabRéfMenus[Numéro référentiels menus],\"0000\") & \"-\" & TabRéfMenus[Titre référentiels menus]","v":"0012-DWE"},12,"DWE","DWE12","Gâteau de riz","CJRM10","Samedi et dimanche midis et soirs","CCRM10","1 pack de 4 pots pour le week-end. 1 pot pour 1 repas","CDRM01","Menu journalier",null,"-",null,"-","2018-10-07","Non"]
[{"$f":"TEXT(TabRéfMenus[Numéro référentiels menus],\"0000\") & \"-\" & TabRéfMenus[Titre référentiels menus]","v":"0013-DWE"},13,"DWE","DWE13","Gâteau de semoule","CJRM10","Samedi et dimanche midis et soirs","CCRM10","1 pack de 4 pots pour le week-end. 1 pot pour 1 repas","CDRM01","Menu journalier",null,"-",null,"-","2018-10-07","Non"]
[{"$f":"TEXT(TabRéfMenus[Numéro référentiels menus],\"0000\") & \"-\" & TabRéfMenus[Titre référentiels menus]","v":"0014-DWE"},14,"DWE","DWE14","Gâteaux samedi et dimanche","CJRM10","Samedi et dimanche midis et soirs","CCRM05","1 boîte pour 2 repas","CDRM01","Menu journalier",null,"-",null,"-","2018-10-07","Non"]
[{"$f":"TEXT(TabRéfMenus[Numéro référentiels menus],\"0000\") & \"-\" & TabRéfMenus[Titre référentiels menus]","v":"0015-DWE"},15,"DWE","DWE15","Mousse au chocolat","CJRM10","Samedi et dimanche midis et soirs","CCRM10","1 pack de 4 pots pour le week-end. 1 pot pour 1 repas","CDRM01","Menu journalier",null,"-",null,"-","2018-10-07","Non"]
[{"$f":"TEXT(TabRéfMenus[Numéro référentiels menus],\"0000\") & \"-\" & TabRéfMenus[Titre référentiels menus]","v":"0016-DWE"},16,"DWE","DWE16","Oranges","CJRM10","Samedi et dimanche midis et soirs","CCRM28","Unité : 1 pour 1 repas","CDRM01","Menu journalier",null,"-",null,"-","2018-10-07","Non"]
[{"$f":"TEXT(TabRéfMenus[Numéro référentiels menus],\"0000\") & \"-\" & TabRéfMenus[Titre référentiels menus]","v":"0017-DWE"},17,"DWE","DWE17","Petits suisses","CJRM10","Samedi et dimanche midis et soirs","CCRM11","1 pack de 6 pots. 3 pots par repas","CDRM01","Menu journalier",null,"-",null,"-","2018-10-07","Non"]
[{"$f":"TEXT(TabRéfMenus[Numéro référentiels menus],\"0000\") & \"-\" & TabRéfMenus[Titre référentiels menus]","v":"0018-DWE"},18,"DWE","DWE18","Pruneaux","CJRM10","Samedi et dimanche midis et soirs","CCRM15","1 paquet pour 4 repas","CDRM01","Menu journalier",null,"-",null,"-","2018-10-07","Non"]
[{"$f":"TEXT(TabRéfMenus[Numéro référentiels menus],\"0000\") & \"-\" & TabRéfMenus[Titre référentiels menus]","v":"0019-DWE"},19,"DWE","DWE19","Riz","CJRM10","Samedi et dimanche midis et soirs","CCRM10","1 pack de 4 pots pour le week-end. 1 pot pour 1 repas","CDRM01","Menu journalier",null,"-",null,"-","2018-10-07","Non"]
[{"$f":"TEXT(TabRéfMenus[Numéro référentiels menus],\"0000\") & \"-\" & TabRéfMenus[Titre référentiels menus]","v":"0020-DWE"},20,"DWE","DWE20","Tapioca","CJRM10","Samedi et dimanche midis et soirs","CCRM23","25 grammes pour 1 repas","CDRM01","Menu journalier",null,"-",null,"-","2018-10-07","Non"]
[{"$f":"TEXT(TabRéfMenus[Numéro référentiels menus],\"0000\") & \"-\" & TabRéfMenus[Titre référentiels menus]","v":"0021-DWE"},21,"DWE","DWE21","Yaourts","CJRM10","Samedi et dimanche midis et soirs","CCRM10","1 pack de 4 pots pour le week-end. 1 pot pour 1 repas","CDRM01","Menu journalier",null,"-",null,"-","2018-10-07","Non"]
[{"$f":"TEXT(TabRéfMenus[Numéro référentiels menus],\"0000\") & \"-\" & TabRéfMenus[Titre référentiels menus]","v":"0001-LMR"},1,"LMR","LMR01","Asperges","CJRM05","Lundi à vendredi midis","CCRM01","1 bocal ou 1 boîte pour 1 repas","CDRM02","Menu midi retraite",null,"-",null,"-","2018-10-05","Non"]
[{"$f":"TEXT(TabRéfMenus[Numéro référentiels menus],\"0000\") & \"-\" & TabRéfMenus[Titre référentiels menus]","v":"0002-LMR"},2,"LMR","LMR02","Avocat","CJRM05","Lundi à vendredi midis","CCRM28","Unité : 1 pour 1 repas","CDRM02","Menu midi retraite",null,"-",null,"-","2018-10-06","Non"]
[{"$f":"TEXT(TabRéfMenus[Numéro référentiels menus],\"0000\") & \"-\" & TabRéfMenus[Titre référentiels menus]","v":"0003-LMR"},3,"LMR","LMR03","Carottes","CJRM05","Lundi à vendredi midis","CCRM32","Unité : 2 pour 1 repas","CDRM02","Menu midi retraite",null,"-",null,"-","2018-10-06","Non"]
[{"$f":"TEXT(TabRéfMenus[Numéro référentiels menus],\"0000\") & \"-\" & TabRéfMenus[Titre référentiels menus]","v":"0004-LMR"},4,"LMR","LMR04","Céleri","CJRM05","Lundi à vendredi midis","CCRM26","Unité : 1 branche pour 1 repas","CDRM02","Menu midi retraite",null,"-",null,"-","2018-10-06","Non"]
[{"$f":"TEXT(TabRéfMenus[Numéro référentiels menus],\"0000\") & \"-\" & TabRéfMenus[Titre référentiels menus]","v":"0005-LMR"},5,"LMR","LMR05","Champignons","CJRM05","Lundi à vendredi midis","CCRM04","1 boîte pour 1 repas","CDRM02","Menu midi retraite",null,"-",null,"-","2018-10-06","Non"]
[{"$f":"TEXT(TabRéfMenus[Numéro référentiels menus],\"0000\") & \"-\" & TabRéfMenus[Titre référentiels menus]","v":"0006-LMR"},6,"LMR","LMR06","Concombre","CJRM05","Lundi à vendredi midis","CCRM28","Unité : 1 pour 1 repas","CDRM02","Menu midi retraite",null,"-",null,"-","2018-10-06","Non"]
[{"$f":"TEXT(TabRéfMenus[Numéro référentiels menus],\"0000\") & \"-\" & TabRéfMenus[Titre référentiels menus]","v":"0007-LMR"},7,"LMR","LMR07","Couscous","CJRM05","Lundi à vendredi midis","CCRM23","25 grammes pour 1 repas","CDRM02","Menu midi retraite",null,"-",null,"-","2018-10-07","Non"]
[{"$f":"TEXT(TabRéfMenus[Numéro référentiels menus],\"0000\") & \"-\" & TabRéfMenus[Titre référentiels menus]","v":"0008-LMR"},8,"LMR","LMR08","Maïs","CJRM05","Lundi à vendredi midis","CCRM05","1 boîte pour 2 repas","CDRM02","Menu midi retraite",null,"-",null,"-","2018-10-07","Non"]
[{"$f":"TEXT(TabRéfMenus[Numéro référentiels menus],\"0000\") & \"-\" & TabRéfMenus[Titre référentiels menus]","v":"0009-LMR"},9,"LMR","LMR09","Pâtes à la sauce tomates","CJRM05","Lundi à vendredi midis","CCRM25","5 cuillères pour 1 repas","CDRM02","Menu midi retraite",null,"-",null,"-","2018-10-07","Non"]
[{"$f":"TEXT(TabRéfMenus[Numéro référentiels menus],\"0000\") & \"-\" & TabRéfMenus[Titre référentiels menus]","v":"0010-LMR"},10,"LMR","LMR10","Pâtes au beurre","CJRM05","Lundi à vendredi midis","CCRM25","5 cuillères pour 1 repas","CDRM02","Menu midi retraite",null,"-",null,"-","2018-10-07","Non"]
[{"$f":"TEXT(TabRéfMenus[Numéro référentiels menus],\"0000\") & \"-\" & TabRéfMenus[Titre référentiels menus]","v":"0011-LMR"},11,"LMR","LMR11","Poireau","CJRM05","Lundi à vendredi midis","CCRM28","Unité : 1 pour 1 repas","CDRM02","Menu midi retraite",null,"-",null,"-","2018-10-07","Non"]
[{"$f":"TEXT(TabRéfMenus[Numéro référentiels menus],\"0000\") & \"-\" & TabRéfMenus[Titre référentiels menus]","v":"0012-LMR"},12,"LMR","LMR12","Pomme de terre","CJRM05","Lundi à vendredi midis","CCRM28","Unité : 1 pour 1 repas","CDRM02","Menu midi retraite",null,"-",null,"-","2018-10-07","Non"]
[{"$f":"TEXT(TabRéfMenus[Numéro référentiels menus],\"0000\") & \"-\" & TabRéfMenus[Titre référentiels menus]","v":"0013-LMR"},13,"LMR","LMR13","Purée","CJRM07","Lundi et mardi soirs","CCRM23","25 grammes pour 1 repas","CDRM02","Menu midi retraite",null,"-",null,"-","2018-10-07","Non"]
[{"$f":"TEXT(TabRéfMenus[Numéro référentiels menus],\"0000\") & \"-\" & TabRéfMenus[Titre référentiels menus]","v":"0014-LMR"},14,"LMR","LMR14","Radis","CJRM05","Lundi à vendredi midis","CCRM07","1 botte ou 1 sachet pour 2 repas","CDRM02","Menu midi retraite",null,"-",null,"-","2018-10-07","Non"]
[{"$f":"TEXT(TabRéfMenus[Numéro référentiels menus],\"0000\") & \"-\" & TabRéfMenus[Titre référentiels menus]","v":"0015-LMR"},15,"LMR","LMR15","Riz","CJRM05","Lundi à vendredi midis","CCRM23","25 grammes pour 1 repas","CDRM02","Menu midi retraite",null,"-",null,"-","2018-10-07","Non"]
[{"$f":"TEXT(TabRéfMenus[Numéro référentiels menus],\"0000\") & \"-\" & TabRéfMenus[Titre référentiels menus]","v":"0016-LMR"},16,"LMR","LMR16","Salade","CJRM05","Lundi à vendredi midis","CCRM33","Unité : 1 tête pour 1 repas","CDRM02","Menu midi retraite",null,"-",null,"-","2018-10-07","Non"]
[{"$f":"TEXT(TabRéfMenus[Numéro référentiels menus],\"0000\") & \"-\" & TabRéfMenus[Titre référentiels menus]","v":"0017-LMR"},17,"LMR","LMR17","Tomates ","CJRM05","Lundi à vendredi midis","CCRM32","Unité : 2 pour 1 repas","CDRM02","Menu midi retraite",null,"-",null,"-","2018-10-07","Non"]
[{"$f":"TEXT(TabRéfMenus[Numéro référentiels menus],\"0000\") & \"-\" & TabRéfMenus[Titre référentiels menus]","v":"0018-LMR"},18,"LMR","LMR01","Asperges","CJRM07","Lundi et mardi soirs","CCRM05","1 boîte pour 2 repas","CDRM01","Menu journalier",null,"-",null,"-","2018-10-21","Oui"]
[{"$f":"TEXT(TabRéfMenus[Numéro référentiels menus],\"0000\") & \"-\" & TabRéfMenus[Titre référentiels menus]","v":"0001-LSLM"},1,"LSLM","LSLM01","Cassoulet","CJRM07","Lundi et mardi soirs","CCRM05","1 boîte pour 2 repas","CDRM01","Menu journalier",null,"-",null,"-","2018-10-05","Non"]
[{"$f":"TEXT(TabRéfMenus[Numéro référentiels menus],\"0000\") & \"-\" & TabRéfMenus[Titre référentiels menus]","v":"0002-LSLM"},2,"LSLM","LSLM02","Choucroute","CJRM07","Lundi et mardi soirs","CCRM05","1 boîte pour 2 repas","CDRM01","Menu journalier",null,"-",null,"-","2018-10-06","Non"]
[{"$f":"TEXT(TabRéfMenus[Numéro référentiels menus],\"0000\") & \"-\" & TabRéfMenus[Titre référentiels menus]","v":"0003-LSLM"},3,"LSLM","LSLM03","Chou-fleur","CJRM07","Lundi et mardi soirs","CCRM29","Unité : 1 pour 2 repas","CDRM01","Menu journalier",null,"-",null,"-","2018-10-06","Non"]
[{"$f":"TEXT(TabRéfMenus[Numéro référentiels menus],\"0000\") & \"-\" & TabRéfMenus[Titre référentiels menus]","v":"0004-LSLM"},4,"LSLM","LSLM04","Choux de Bruxelles","CJRM07","Lundi et mardi soirs","CCRM05","1 boîte pour 2 repas","CDRM01","Menu journalier",null,"-",null,"-","2018-10-06","Non"]
[{"$f":"TEXT(TabRéfMenus[Numéro référentiels menus],\"0000\") & \"-\" & TabRéfMenus[Titre référentiels menus]","v":"0005-LSLM"},5,"LSLM","LSLM05","Couscous","CJRM07","Lundi et mardi soirs","CCRM23","25 grammes pour 1 repas","CDRM01","Menu journalier",null,"-",null,"-","2018-10-06","Non"]
[{"$f":"TEXT(TabRéfMenus[Numéro référentiels menus],\"0000\") & \"-\" & TabRéfMenus[Titre référentiels menus]","v":"0006-LSLM"},6,"LSLM","LSLM06","Endives","CJRM07","Lundi et mardi soirs","CCRM05","1 boîte pour 2 repas","CDRM01","Menu journalier",null,"-",null,"-","2018-10-06","Non"]
[{"$f":"TEXT(TabRéfMenus[Numéro référentiels menus],\"0000\") & \"-\" & TabRéfMenus[Titre référentiels menus]","v":"0007-LSLM"},7,"LSLM","LSLM07","Haricots verts","CJRM07","Lundi et mardi soirs","CCRM05","1 boîte pour 2 repas","CDRM01","Menu journalier",null,"-",null,"-","2018-10-07","Non"]
[{"$f":"TEXT(TabRéfMenus[Numéro référentiels menus],\"0000\") & \"-\" & TabRéfMenus[Titre référentiels menus]","v":"0008-LSLM"},8,"LSLM","LSLM08","Maïs","CJRM07","Lundi et mardi soirs","CCRM05","1 boîte pour 2 repas","CDRM01","Menu journalier",null,"-",null,"-","2018-10-07","Non"]
[{"$f":"TEXT(TabRéfMenus[Numéro référentiels menus],\"0000\") & \"-\" & TabRéfMenus[Titre référentiels menus]","v":"0009-LSLM"},9,"LSLM","LSLM09","Paella","CJRM07","Lundi et mardi soirs","CCRM05","1 boîte pour 2 repas","CDRM01","Menu journalier",null,"-",null,"-","2018-10-07","Non"]
[{"$f":"TEXT(TabRéfMenus[Numéro référentiels menus],\"0000\") & \"-\" & TabRéfMenus[Titre référentiels menus]","v":"0010-LSLM"},10,"LSLM","LSLM10","Poireau","CJRM07","Lundi et mardi soirs","CCRM28","Unité : 1 pour 1 repas","CDRM01","Menu journalier",null,"-",null,"-","2018-10-07","Non"]
[{"$f":"TEXT(TabRéfMenus[Numéro référentiels menus],\"0000\") & \"-\" & TabRéfMenus[Titre référentiels menus]","v":"0011-LSLM"},11,"LSLM","LSLM11","Pomme de terre","CJRM07","Lundi et mardi soirs","CCRM28","Unité : 1 pour 1 repas","CDRM01","Menu journalier",null,"-",null,"-","2018-10-07","Non"]
[{"$f":"TEXT(TabRéfMenus[Numéro référentiels menus],\"0000\") & \"-\" & TabRéfMenus[Titre référentiels menus]","v":"0012-LSLM"},12,"LSLM","LSLM12","Purée","CJRM07","Lundi et mardi soirs","CCRM23","25 grammes pour 1 repas","CDRM01","Menu journalier",null,"-",null,"-","2018-10-07","Non"]
[{"$f":"TEXT(TabRéfMenus[Numéro référentiels menus],\"0000\") & \"-\" & TabRéfMenus[Titre référentiels menus]","v":"0013-LSLM"},13,"LSLM","LSLM13","Quenelles","CJRM07","Lundi et mardi soirs","CCRM05","1 boîte pour 2 repas","CDRM01","Menu journalier",null,"-",null,"-","2018-10-07","Non"]
[{"$f":"TEXT(TabRéfMenus[Numéro référentiels menus],\"0000\") & \"-\" & TabRéfMenus[Titre référentiels menus]","v":"0014-LSLM"},14,"LSLM","LSLM14","Riz","CJRM07","Lundi et mardi soirs","CCRM23","25 grammes pour 1 repas","CDRM01","Menu journalier",null,"-",null,"-","2018-10-07","Non"]
[{"$f":"TEXT(TabRéfMenus[Numéro référentiels menus],\"0000\") & \"-\" & TabRéfMenus[Titre référentiels menus]","v":"0001-LSMJ"},1,"LSMJ","LSMJ01","Macédoine de légumes","CJRM08","Mercredi et jeudi soirs","CCRM05","1 boîte pour 2 repas","CDRM01","Menu journalier",null,"-",null,"-","2018-10-05","Non"]
[{"$f":"TEXT(TabRéfMenus[Numéro référentiels menus],\"0000\") & \"-\" & TabRéfMenus[Titre référentiels menus]","v":"0002-LSMJ"},2,"LSMJ","LSMJ02","Petits pois","CJRM08","Mercredi et jeudi soirs","CCRM05","1 boîte pour 2 repas","CDRM01","Menu journalier",null,"-",null,"-","2018-10-06","Non"]
[{"$f":"TEXT(TabRéfMenus[Numéro référentiels menus],\"0000\") & \"-\" & TabRéfMenus[Titre référentiels menus]","v":"0003-LSMJ"},3,"LSMJ","LSMJ03","Petits pois et jeunes carottes","CJRM08","Mercredi et jeudi soirs","CCRM05","1 boîte pour 2 repas","CDRM01","Menu journalier",null,"-",null,"-","2018-10-06","Non"]
[{"$f":"TEXT(TabRéfMenus[Numéro référentiels menus],\"0000\") & \"-\" & TabRéfMenus[Titre référentiels menus]","v":"0004-LSMJ"},4,"LSMJ","LSMJ04","Ratatouille","CJRM08","Mercredi et jeudi soirs","CCRM05","1 boîte pour 2 repas","CDRM01","Menu journalier",null,"-",null,"-","2018-10-06","Non"]
[{"$f":"TEXT(TabRéfMenus[Numéro référentiels menus],\"0000\") & \"-\" & TabRéfMenus[Titre référentiels menus]","v":"0005-LSMJ"},5,"LSMJ","LSMJ05","Raviolis","CJRM08","Mercredi et jeudi soirs","CCRM05","1 boîte pour 2 repas","CDRM01","Menu journalier",null,"-",null,"-","2018-10-06","Non"]
[{"$f":"TEXT(TabRéfMenus[Numéro référentiels menus],\"0000\") & \"-\" & TabRéfMenus[Titre référentiels menus]","v":"0006-LSMJ"},6,"LSMJ","LSMJ06","Tomates pelées","CJRM08","Mercredi et jeudi soirs","CCRM05","1 boîte pour 2 repas","CDRM01","Menu journalier",null,"-",null,"-","2018-10-06","Non"]
[{"$f":"TEXT(TabRéfMenus[Numéro référentiels menus],\"0000\") & \"-\" & TabRéfMenus[Titre référentiels menus]","v":"0001-LSV"},1,"LSV","LSV01","Asperges","CJRM12","Vendredi soir","CCRM01","1 bocal ou 1 boîte pour 1 repas","CDRM01","Menu journalier",null,"-",null,"-","2018-10-05","Non"]
[{"$f":"TEXT(TabRéfMenus[Numéro référentiels menus],\"0000\") & \"-\" & TabRéfMenus[Titre référentiels menus]","v":"0002-LSV"},2,"LSV","LSV02","Avocat","CJRM12","Vendredi soir","CCRM28","Unité : 1 pour 1 repas","CDRM01","Menu journalier",null,"-",null,"-","2018-10-06","Non"]
[{"$f":"TEXT(TabRéfMenus[Numéro référentiels menus],\"0000\") & \"-\" & TabRéfMenus[Titre référentiels menus]","v":"0003-LSV"},3,"LSV","LSV03","Betterave rouge","CJRM12","Vendredi soir","CCRM15","1 paquet pour 4 repas","CDRM01","Menu journalier",null,"-",null,"-","2018-10-06","Non"]
[{"$f":"TEXT(TabRéfMenus[Numéro référentiels menus],\"0000\") & \"-\" & TabRéfMenus[Titre référentiels menus]","v":"0004-LSV"},4,"LSV","LSV04","Carottes","CJRM12","Vendredi soir","CCRM32","Unité : 2 pour 1 repas","CDRM01","Menu journalier",null,"-",null,"-","2018-10-06","Non"]
[{"$f":"TEXT(TabRéfMenus[Numéro référentiels menus],\"0000\") & \"-\" & TabRéfMenus[Titre référentiels menus]","v":"0005-LSV"},5,"LSV","LSV05","Céleri","CJRM12","Vendredi soir","CCRM26","Unité : 1 branche pour 1 repas","CDRM01","Menu journalier",null,"-",null,"-","2018-10-06","Non"]
[{"$f":"TEXT(TabRéfMenus[Numéro référentiels menus],\"0000\") & \"-\" & TabRéfMenus[Titre référentiels menus]","v":"0006-LSV"},6,"LSV","LSV06","Champignons","CJRM12","Vendredi soir","CCRM04","1 boîte pour 1 repas","CDRM01","Menu journalier",null,"-",null,"-","2018-10-06","Non"]
[{"$f":"TEXT(TabRéfMenus[Numéro référentiels menus],\"0000\") & \"-\" & TabRéfMenus[Titre référentiels menus]","v":"0007-LSV"},7,"LSV","LSV07","Concombre","CJRM12","Vendredi soir","CCRM28","Unité : 1 pour 1 repas","CDRM01","Menu journalier",null,"-",null,"-","2018-10-07","Non"]
[{"$f":"TEXT(TabRéfMenus[Numéro référentiels menus],\"0000\") & \"-\" & TabRéfMenus[Titre référentiels menus]","v":"0008-LSV"},8,"LSV","LSV08","Radis","CJRM12","Vendredi soir","CCRM06","1 botte ou 1 sachet pour 1 repas","CDRM01","Menu journalier",null,"-",null,"-","2018-10-07","Non"]
[{"$f":"TEXT(TabRéfMenus[Numéro référentiels menus],\"0000\") & \"-\" & TabRéfMenus[Titre référentiels menus]","v":"0009-LSV"},9,"LSV","LSV09","Salade","CJRM12","Vendredi soir","CCRM33","Unité : 1 tête pour 1 repas","CDRM01","Menu journalier",null,"-",null,"-","2018-10-07","Non"]
[{"$f":"TEXT(TabRéfMenus[Numéro référentiels menus],\"0000\") & \"-\" & TabRéfMenus[Titre référentiels menus]","v":"0010-LSV"},10,"LSV","LSV10","Salsifis","CJRM12","Vendredi soir","CCRM04","1 boîte pour 1 repas","CDRM01","Menu journalier",null,"-",null,"-","2018-10-07","Non"]
[{"$f":"TEXT(TabRéfMenus[Numéro référentiels menus],\"0000\") & \"-\" & TabRéfMenus[Titre référentiels menus]","v":"0011-LSV"},11,"LSV","LSV11","Tomates ","CJRM12","Vendredi soir","CCRM32","Unité : 2 pour 1 repas","CDRM01","Menu journalier",null,"-",null,"-","2018-10-07","Non"]
[{"$f":"TEXT(TabRéfMenus[Numéro référentiels menus],\"0000\") & \"-\" & TabRéfMenus[Titre référentiels menus]","v":"0001-LWED"},1,"LWED","LWED01","Asperges","CJRM03","Dimanche soir","CCRM01","1 bocal ou 1 boîte pour 1 repas","CDRM01","Menu journalier",null,"-",null,"-","2018-10-05","Non"]
[{"$f":"TEXT(TabRéfMenus[Numéro référentiels menus],\"0000\") & \"-\" & TabRéfMenus[Titre référentiels menus]","v":"0002-LWED"},2,"LWED","LWED02","Chips","CJRM02","Dimanche midi et soir","CCRM13","1 paquet pour 2 repas","CDRM01","Menu journalier",null,"-",null,"-","2018-10-06","Non"]
[{"$f":"TEXT(TabRéfMenus[Numéro référentiels menus],\"0000\") & \"-\" & TabRéfMenus[Titre référentiels menus]","v":"0003-LWED"},3,"LWED","LWED03","Frites","CJRM01","Dimanche midi","CCRM22","20 frites pour 1 repas","CDRM01","Menu journalier",null,"-",null,"-","2018-10-06","Non"]
[{"$f":"TEXT(TabRéfMenus[Numéro référentiels menus],\"0000\") & \"-\" & TabRéfMenus[Titre référentiels menus]","v":"0004-LWED"},4,"LWED","LWED04","Haricots verts","CJRM02","Dimanche midi et soir","CCRM05","1 boîte pour 2 repas","CDRM01","Menu journalier",null,"-",null,"-","2018-10-06","Non"]
[{"$f":"TEXT(TabRéfMenus[Numéro référentiels menus],\"0000\") & \"-\" & TabRéfMenus[Titre référentiels menus]","v":"0001-LWES"},1,"LWES","LWES01","Pâtes à la sauce tomates","CJRM11","Samedi midi et soir","CCRM25","5 cuillères pour 1 repas","CDRM01","Menu journalier",null,"-",null,"-","2018-10-05","Non"]
[{"$f":"TEXT(TabRéfMenus[Numéro référentiels menus],\"0000\") & \"-\" & TabRéfMenus[Titre référentiels menus]","v":"0002-LWES"},2,"LWES","LWES02","Pâtes au beurre","CJRM11","Samedi midi et soir","CCRM25","5 cuillères pour 1 repas","CDRM01","Menu journalier",null,"-",null,"-","2018-10-06","Non"]
[{"$f":"TEXT(TabRéfMenus[Numéro référentiels menus],\"0000\") & \"-\" & TabRéfMenus[Titre référentiels menus]","v":"0003-LWES"},3,"LWES","LWES03","Pâtes au fromage râpé","CJRM11","Samedi midi et soir","CCRM25","5 cuillères pour 1 repas","CDRM01","Menu journalier",null,"-",null,"-","2018-10-06","Non"]
[{"$f":"TEXT(TabRéfMenus[Numéro référentiels menus],\"0000\") & \"-\" & TabRéfMenus[Titre référentiels menus]","v":"0001-O"},1,"O","O01","Armistice du 11 novembre 1918",null,"-",null,"-",null,"-",null,"-",null,"-","2018-10-05","Non"]
[{"$f":"TEXT(TabRéfMenus[Numéro référentiels menus],\"0000\") & \"-\" & TabRéfMenus[Titre référentiels menus]","v":"0002-O"},2,"O","O02","Ascension",null,"-",null,"-",null,"-",null,"-",null,"-","2018-10-06","Non"]
[{"$f":"TEXT(TabRéfMenus[Numéro référentiels menus],\"0000\") & \"-\" & TabRéfMenus[Titre référentiels menus]","v":"0003-O"},3,"O","O03","Assomption",null,"-",null,"-",null,"-",null,"-",null,"-","2018-10-06","Non"]
[{"$f":"TEXT(TabRéfMenus[Numéro référentiels menus],\"0000\") & \"-\" & TabRéfMenus[Titre référentiels menus]","v":"0004-O"},4,"O","O04","Fête du travail",null,"-",null,"-",null,"-",null,"-",null,"-","2018-10-06","Non"]
[{"$f":"TEXT(TabRéfMenus[Numéro référentiels menus],\"0000\") & \"-\" & TabRéfMenus[Titre référentiels menus]","v":"0005-O"},5,"O","O05","Fête nationale",null,"-",null,"-",null,"-",null,"-",null,"-","2018-10-06","Non"]
[{"$f":"TEXT(TabRéfMenus[Numéro référentiels menus],\"0000\") & \"-\" & TabRéfMenus[Titre référentiels menus]","v":"0006-O"},6,"O","O06","Jour de l'an",null,"-",null,"-",null,"-",null,"-",null,"-","2018-10-06","Non"]
[{"$f":"TEXT(TabRéfMenus[Numéro référentiels menus],\"0000\") & \"-\" & TabRéfMenus[Titre référentiels menus]","v":"0007-O"},7,"O","O07","Lundi de Pâques",null,"-",null,"-",null,"-",null,"-",null,"-","2018-10-07","Non"]
[{"$f":"TEXT(TabRéfMenus[Numéro référentiels menus],\"0000\") & \"-\" & TabRéfMenus[Titre référentiels menus]","v":"0008-O"},8,"O","O08","Lundi de Pentecôte",null,"-",null,"-",null,"-",null,"-",null,"-","2018-10-07","Non"]
[{"$f":"TEXT(TabRéfMenus[Numéro référentiels menus],\"0000\") & \"-\" & TabRéfMenus[Titre référentiels menus]","v":"0009-O"},9,"O","O09","Noël",null,"-",null,"-",null,"-",null,"-",null,"-","2018-10-07","Non"]
[{"$f":"TEXT(TabRéfMenus[Numéro référentiels menus],\"0000\") & \"-\" & TabRéfMenus[Titre référentiels menus]","v":"0010-O"},10,"O","O10","Pâques",null,"-",null,"-",null,"-",null,"-",null,"-","2018-10-07","Non"]
[{"$f":"TEXT(TabRéfMenus[Numéro référentiels menus],\"0000\") & \"-\" & TabRéfMenus[Titre référentiels menus]","v":"0011-O"},11,"O","O11","Pentecôte",null,"-",null,"-",null,"-",null,"-",null,"-","2018-10-07","Non"]
[{"$f":"TEXT(TabRéfMenus[Numéro référentiels menus],\"0000\") & \"-\" & TabRéfMenus[Titre référentiels menus]","v":"0012-O"},12,"O","O12","Toussaint",null,"-",null,"-",null,"-",null,"-",null,"-","2018-10-07","Non"]
[{"$f":"TEXT(TabRéfMenus[Numéro référentiels menus],\"0000\") & \"-\" & TabRéfMenus[Titre référentiels menus]","v":"0013-O"},13,"O","O13","Victoire du 08 mai 1945",null,"-",null,"-",null,"-",null,"-",null,"-","2018-10-07","Non"]
[{"$f":"TEXT(TabRéfMenus[Numéro référentiels menus],\"0000\") & \"-\" & TabRéfMenus[Titre référentiels menus]","v":"0001-PC"},1,"PC","PC01","Janvier",null,"-",null,"-",null,"-",null,"-",null,"-","2018-10-05","Non"]
[{"$f":"TEXT(TabRéfMenus[Numéro référentiels menus],\"0000\") & \"-\" & TabRéfMenus[Titre référentiels menus]","v":"0002-PC"},2,"PC","PC02","Février",null,"-",null,"-",null,"-",null,"-",null,"-","2018-10-06","Non"]
[{"$f":"TEXT(TabRéfMenus[Numéro référentiels menus],\"0000\") & \"-\" & TabRéfMenus[Titre référentiels menus]","v":"0003-PC"},3,"PC","PC03","Mars",null,"-",null,"-",null,"-",null,"-",null,"-","2018-10-06","Non"]
[{"$f":"TEXT(TabRéfMenus[Numéro référentiels menus],\"0000\") & \"-\" & TabRéfMenus[Titre référentiels menus]","v":"0004-PC"},4,"PC","PC04","Avril",null,"-",null,"-",null,"-",null,"-",null,"-","2018-10-06","Non"]
[{"$f":"TEXT(TabRéfMenus[Numéro référentiels menus],\"0000\") & \"-\" & TabRéfMenus[Titre référentiels menus]","v":"0005-PC"},5,"PC","PC05","Mai",null,"-",null,"-",null,"-",null,"-",null,"-","2018-10-06","Non"]
[{"$f":"TEXT(TabRéfMenus[Numéro référentiels menus],\"0000\") & \"-\" & TabRéfMenus[Titre référentiels menus]","v":"0006-PC"},6,"PC","PC07","Juillet",null,"-",null,"-",null,"-",null,"-",null,"-","2018-10-06","Non"]
[{"$f":"TEXT(TabRéfMenus[Numéro référentiels menus],\"0000\") & \"-\" & TabRéfMenus[Titre référentiels menus]","v":"0007-PC"},7,"PC","PC07","Juillet",null,"-",null,"-",null,"-",null,"-",null,"-","2018-10-07","Non"]
[{"$f":"TEXT(TabRéfMenus[Numéro référentiels menus],\"0000\") & \"-\" & TabRéfMenus[Titre référentiels menus]","v":"0008-PC"},8,"PC","PC08","Août",null,"-",null,"-",null,"-",null,"-",null,"-","2018-10-07","Non"]
[{"$f":"TEXT(TabRéfMenus[Numéro référentiels menus],\"0000\") & \"-\" & TabRéfMenus[Titre référentiels menus]","v":"0009-PC"},9,"PC","PC09","Septembre",null,"-",null,"-",null,"-",null,"-",null,"-","2018-10-07","Non"]
[{"$f":"TEXT(TabRéfMenus[Numéro référentiels menus],\"0000\") & \"-\" & TabRéfMenus[Titre référentiels menus]","v":"0010-PC"},10,"PC","PC10","Octobre",null,"-",null,"-",null,"-",null,"-",null,"-","2018-10-07","Non"]
[{"$f":"TEXT(TabRéfMenus[Numéro référentiels menus],\"0000\") & \"-\" & TabRéfMenus[Titre référentiels menus]","v":"0011-PC"},11,"PC","PC12","Décembre",null,"-",null,"-",null,"-",null,"-",null,"-","2018-10-07","Non"]
[{"$f":"TEXT(TabRéfMenus[Numéro référentiels menus],\"0000\") & \"-\" & TabRéfMenus[Titre référentiels menus]","v":"0012-PC"},12,"PC","PC12","Décembre",null,"-",null,"-",null,"-",null,"-",null,"-","2018-10-07","Non"]
[{"$f":"TEXT(TabRéfMenus[Numéro référentiels menus],\"0000\") & \"-\" & TabRéfMenus[Titre référentiels menus]","v":"0001-PVWE"},1,"PVWE",null,"-",null,"-",null,"-",null,"-",null,"-","CPVWE01","Viande week-end premier semestre","2018-10-07","Non"]
[{"$f":"TEXT(TabRéfMenus[Numéro référentiels menus],\"0000\") & \"-\" & TabRéfMenus[Titre référentiels menus]","v":"0002-PVWE"},2,"PVWE",null,"-",null,"-",null,"-",null,"-",null,"-","CPVWE02","Viande week-end deuxième semestre","2018-10-07","Non"]
[{"$f":"TEXT(TabRéfMenus[Numéro référentiels menus],\"0000\") & \"-\" & TabRéfMenus[Titre référentiels menus]","v":"0001-VMR"},1,"VMR","VMR01","Rôti d'agneau","CJRM05","Lundi à vendredi midis","CCRM09","1 morceau de 500 grammes pour 5 repas","CDRM02","Menu midi retraite",null,"-",null,"-","2018-10-05","Non"]
[{"$f":"TEXT(TabRéfMenus[Numéro référentiels menus],\"0000\") & \"-\" & TabRéfMenus[Titre référentiels menus]","v":"0002-VMR"},2,"VMR","VMR02","Rôti de bœuf","CJRM05","Lundi à vendredi midis","CCRM09","1 morceau de 500 grammes pour 5 repas","CDRM02","Menu midi retraite",null,"-",null,"-","2018-10-06","Non"]
[{"$f":"TEXT(TabRéfMenus[Numéro référentiels menus],\"0000\") & \"-\" & TabRéfMenus[Titre référentiels menus]","v":"0003-VMR"},3,"VMR","VMR03","Rôti de cheval","CJRM05","Lundi à vendredi midis","CCRM09","1 morceau de 500 grammes pour 5 repas","CDRM02","Menu midi retraite",null,"-",null,"-","2018-10-06","Non"]
[{"$f":"TEXT(TabRéfMenus[Numéro référentiels menus],\"0000\") & \"-\" & TabRéfMenus[Titre référentiels menus]","v":"0004-VMR"},4,"VMR","VMR04","Rôti de porc","CJRM05","Lundi à vendredi midis","CCRM09","1 morceau de 500 grammes pour 5 repas","CDRM02","Menu midi retraite",null,"-",null,"-","2018-10-06","Non"]
[{"$f":"TEXT(TabRéfMenus[Numéro référentiels menus],\"0000\") & \"-\" & TabRéfMenus[Titre référentiels menus]","v":"0005-VMR"},5,"VMR","VMR05","Rôti de veau","CJRM05","Lundi à vendredi midis","CCRM09","1 morceau de 500 grammes pour 5 repas","CDRM02","Menu midi retraite",null,"-",null,"-","2018-10-06","Non"]
[{"$f":"TEXT(TabRéfMenus[Numéro référentiels menus],\"0000\") & \"-\" & TabRéfMenus[Titre référentiels menus]","v":"0001-VS"},1,"VS","VS01","Bifteck haché de bœuf","CJRM04","Lundi à dimanche soirs","CCRM13","1 paquet pour 2 repas","CDRM01","Menu journalier",null,"-",null,"-","2018-10-06","Non"]
[{"$f":"TEXT(TabRéfMenus[Numéro référentiels menus],\"0000\") & \"-\" & TabRéfMenus[Titre référentiels menus]","v":"0002-VS"},2,"VS","VS02","Bifteck haché de cheval","CJRM04","Lundi à dimanche soirs","CCRM21","125 grammes pour 1 repas","CDRM01","Menu journalier",null,"-",null,"-","2018-10-06","Non"]
[{"$f":"TEXT(TabRéfMenus[Numéro référentiels menus],\"0000\") & \"-\" & TabRéfMenus[Titre référentiels menus]","v":"0003-VS"},3,"VS","VS03","Bifteck haché de veau","CJRM04","Lundi à dimanche soirs","CCRM13","1 paquet pour 2 repas","CDRM01","Menu journalier",null,"-",null,"-","2018-10-06","Non"]
[{"$f":"TEXT(TabRéfMenus[Numéro référentiels menus],\"0000\") & \"-\" & TabRéfMenus[Titre référentiels menus]","v":"0004-VS"},4,"VS","VS04","Bouchée à la reine","CJRM04","Lundi à dimanche soirs","CCRM05","1 boîte pour 2 repas","CDRM01","Menu journalier",null,"-",null,"-","2018-10-06","Non"]
[{"$f":"TEXT(TabRéfMenus[Numéro référentiels menus],\"0000\") & \"-\" & TabRéfMenus[Titre référentiels menus]","v":"0005-VS"},5,"VS","VS05","Boudin","CJRM04","Lundi à dimanche soirs","CCRM13","1 paquet pour 2 repas","CDRM01","Menu journalier",null,"-",null,"-","2018-10-06","Non"]
[{"$f":"TEXT(TabRéfMenus[Numéro référentiels menus],\"0000\") & \"-\" & TabRéfMenus[Titre référentiels menus]","v":"0006-VS"},6,"VS","VS06","Cervelas","CJRM04","Lundi à dimanche soirs","CCRM13","1 paquet pour 2 repas","CDRM01","Menu journalier",null,"-",null,"-","2018-10-06","Non"]
[{"$f":"TEXT(TabRéfMenus[Numéro référentiels menus],\"0000\") & \"-\" & TabRéfMenus[Titre référentiels menus]","v":"0007-VS"},7,"VS","VS07","Cœur","CJRM04","Lundi à dimanche soirs","CCRM13","1 paquet pour 2 repas","CDRM01","Menu journalier",null,"-",null,"-","2018-10-07","Non"]
[{"$f":"TEXT(TabRéfMenus[Numéro référentiels menus],\"0000\") & \"-\" & TabRéfMenus[Titre référentiels menus]","v":"0008-VS"},8,"VS","VS08","Croque-monsieur","CJRM04","Lundi à dimanche soirs","CCRM05","1 boîte pour 2 repas","CDRM01","Menu journalier",null,"-",null,"-","2018-10-07","Non"]
[{"$f":"TEXT(TabRéfMenus[Numéro référentiels menus],\"0000\") & \"-\" & TabRéfMenus[Titre référentiels menus]","v":"0009-VS"},9,"VS","VS09","Foie","CJRM04","Lundi à dimanche soirs","CCRM13","1 paquet pour 2 repas","CDRM01","Menu journalier",null,"-",null,"-","2018-10-07","Non"]
[{"$f":"TEXT(TabRéfMenus[Numéro référentiels menus],\"0000\") & \"-\" & TabRéfMenus[Titre référentiels menus]","v":"0010-VS"},10,"VS","VS10","Fromage de tête","CJRM04","Lundi à dimanche soirs","CCRM24","3 tranches pour 1 repas","CDRM01","Menu journalier",null,"-",null,"-","2018-10-07","Non"]
[{"$f":"TEXT(TabRéfMenus[Numéro référentiels menus],\"0000\") & \"-\" & TabRéfMenus[Titre référentiels menus]","v":"0011-VS"},11,"VS","VS11","Jambon","CJRM04","Lundi à dimanche soirs","CCRM13","1 paquet pour 2 repas","CDRM01","Menu journalier",null,"-",null,"-","2018-10-07","Non"]
[{"$f":"TEXT(TabRéfMenus[Numéro référentiels menus],\"0000\") & \"-\" & TabRéfMenus[Titre référentiels menus]","v":"0012-VS"},12,"VS","VS12","Jambonneau","CJRM04","Lundi à dimanche soirs","CCRM13","1 paquet pour 2 repas","CDRM01","Menu journalier",null,"-",null,"-","2018-10-07","Non"]
[{"$f":"TEXT(TabRéfMenus[Numéro référentiels menus],\"0000\") & \"-\" & TabRéfMenus[Titre référentiels menus]","v":"0013-VS"},13,"VS","VS13","Mortadelle","CJRM04","Lundi à dimanche soirs","CCRM13","1 paquet pour 2 repas","CDRM01","Menu journalier",null,"-",null,"-","2018-10-07","Non"]
[{"$f":"TEXT(TabRéfMenus[Numéro référentiels menus],\"0000\") & \"-\" & TabRéfMenus[Titre référentiels menus]","v":"0014-VS"},14,"VS","VS14","Œufs","CJRM04","Lundi à dimanche soirs","CCRM02","1 boîte de 6 œufs. 3 œufs pour 1 repas","CDRM01","Menu journalier",null,"-",null,"-","2018-10-07","Non"]
[{"$f":"TEXT(TabRéfMenus[Numéro référentiels menus],\"0000\") & \"-\" & TabRéfMenus[Titre référentiels menus]","v":"0015-VS"},15,"VS","VS15","Pizza","CJRM04","Lundi à dimanche soirs","CCRM13","1 paquet pour 2 repas","CDRM01","Menu journalier",null,"-",null,"-","2018-10-07","Non"]
[{"$f":"TEXT(TabRéfMenus[Numéro référentiels menus],\"0000\") & \"-\" & TabRéfMenus[Titre référentiels menus]","v":"0016-VS"},16,"VS","VS16","Poisson","CJRM04","Lundi à dimanche soirs","CCRM28","Unité : 1 pour 1 repas","CDRM01","Menu journalier",null,"-",null,"-","2018-10-07","Non"]
[{"$f":"TEXT(TabRéfMenus[Numéro référentiels menus],\"0000\") & \"-\" & TabRéfMenus[Titre référentiels menus]","v":"0017-VS"},17,"VS","VS17","Quiche lorraine","CJRM04","Lundi à dimanche soirs","CCRM05","1 boîte pour 2 repas","CDRM01","Menu journalier",null,"-",null,"-","2018-10-07","Non"]
[{"$f":"TEXT(TabRéfMenus[Numéro référentiels menus],\"0000\") & \"-\" & TabRéfMenus[Titre référentiels menus]","v":"0018-VS"},18,"VS","VS18","Roulade à la pistache","CJRM04","Lundi à dimanche soirs","CCRM24","3 tranches pour 1 repas","CDRM01","Menu journalier",null,"-",null,"-","2018-10-07","Non"]
[{"$f":"TEXT(TabRéfMenus[Numéro référentiels menus],\"0000\") & \"-\" & TabRéfMenus[Titre référentiels menus]","v":"0019-VS"},19,"VS","VS19","Roulé au fromage","CJRM04","Lundi à dimanche soirs","CCRM05","1 boîte pour 2 repas","CDRM01","Menu journalier",null,"-",null,"-","2018-10-07","Non"]
[{"$f":"TEXT(TabRéfMenus[Numéro référentiels menus],\"0000\") & \"-\" & TabRéfMenus[Titre référentiels menus]","v":"0020-VS"},20,"VS","VS20","Salami","CJRM04","Lundi à dimanche soirs","CCRM13","1 paquet pour 2 repas","CDRM01","Menu journalier",null,"-",null,"-","2018-10-07","Non"]
[{"$f":"TEXT(TabRéfMenus[Numéro référentiels menus],\"0000\") & \"-\" & TabRéfMenus[Titre référentiels menus]","v":"0021-VS"},21,"VS","VS22","Saucisson","CJRM04","Lundi à dimanche soirs","CCRM08","1 morceau de 300 grammes ou 400 grammes (Leclerc) pour 3 repas","CDRM01","Menu journalier",null,"-",null,"-","2018-10-07","Non"]
[{"$f":"TEXT(TabRéfMenus[Numéro référentiels menus],\"0000\") & \"-\" & TabRéfMenus[Titre référentiels menus]","v":"0022-VS"},22,"VS","VS22","Saucisson","CJRM04","Lundi à dimanche soirs","CCRM08","1 morceau de 300 grammes ou 400 grammes (Leclerc) pour 3 repas","CDRM01","Menu journalier",null,"-",null,"-","2018-10-07","Non"]
[{"$f":"TEXT(TabRéfMenus[Numéro référentiels menus],\"0000\") & \"-\" & TabRéfMenus[Titre référentiels menus]","v":"0023-VS"},23,"VS","VS23","Tête persillée","CJRM04","Lundi à dimanche soirs","CCRM20","1 tranche pour 2 repas","CDRM01","Menu journalier",null,"-",null,"-","2018-10-07","Non"]
[{"$f":"TEXT(TabRéfMenus[Numéro référentiels menus],\"0000\") & \"-\" & TabRéfMenus[Titre référentiels menus]","v":"0024-VS"},24,"VS","VS24","Tête roulée","CJRM04","Lundi à dimanche soirs","CCRM24","3 tranches pour 1 repas","CDRM01","Menu journalier",null,"-",null,"-","2018-10-07","Non"]
[{"$f":"TEXT(TabRéfMenus[Numéro référentiels menus],\"0000\") & \"-\" & TabRéfMenus[Titre référentiels menus]","v":"0025-VS"},25,"VS","VS25","Thon","CJRM04","Lundi à dimanche soirs","CCRM04","1 boîte pour 1 repas","CDRM01","Menu journalier",null,"-",null,"-","2018-10-07","Non"]
[{"$f":"TEXT(TabRéfMenus[Numéro référentiels menus],\"0000\") & \"-\" & TabRéfMenus[Titre référentiels menus]","v":"0026-VS"},26,"VS","VS26","Viande cassoulet","CJRM07","Lundi et mardi soirs","CCRM05","1 boîte pour 2 repas","CDRM01","Menu journalier",null,"-",null,"-","2018-10-07","Non"]
[{"$f":"TEXT(TabRéfMenus[Numéro référentiels menus],\"0000\") & \"-\" & TabRéfMenus[Titre référentiels menus]","v":"0027-VS"},27,"VS","VS27","Viande choucroute","CJRM07","Lundi et mardi soirs","CCRM05","1 boîte pour 2 repas","CDRM01","Menu journalier",null,"-",null,"-","2018-10-07","Non"]
[{"$f":"TEXT(TabRéfMenus[Numéro référentiels menus],\"0000\") & \"-\" & TabRéfMenus[Titre référentiels menus]","v":"0028-VS"},28,"VS","VS28","Viande paella","CJRM07","Lundi et mardi soirs","CCRM05","1 boîte pour 2 repas","CDRM01","Menu journalier",null,"-",null,"-","2018-10-07","Non"]
[{"$f":"TEXT(TabRéfMenus[Numéro référentiels menus],\"0000\") & \"-\" & TabRéfMenus[Titre référentiels menus]","v":"0001-VWE"},1,"VWE","VWE01","Agneau","CJRM09","Samedi et dimanche midis","CCRM19","1 tranche pour 1 repas","CDRM03","Menu viandes",null,"-",null,"-","2018-10-06","Non"]
[{"$f":"TEXT(TabRéfMenus[Numéro référentiels menus],\"0000\") & \"-\" & TabRéfMenus[Titre référentiels menus]","v":"0002-VWE"},2,"VWE","VWE02","Bœuf","CJRM09","Samedi et dimanche midis","CCRM19","1 tranche pour 1 repas","CDRM03","Menu viandes",null,"-",null,"-","2018-10-06","Non"]
[{"$f":"TEXT(TabRéfMenus[Numéro référentiels menus],\"0000\") & \"-\" & TabRéfMenus[Titre référentiels menus]","v":"0003-VWE"},3,"VWE","VWE03","Cheval","CJRM09","Samedi et dimanche midis","CCRM19","1 tranche pour 1 repas","CDRM03","Menu viandes",null,"-",null,"-","2018-10-06","Non"]
[{"$f":"TEXT(TabRéfMenus[Numéro référentiels menus],\"0000\") & \"-\" & TabRéfMenus[Titre référentiels menus]","v":"0004-VWE"},4,"VWE","VWE04","Dinde","CJRM09","Samedi et dimanche midis","CCRM19","1 tranche pour 1 repas","CDRM03","Menu viandes",null,"-",null,"-","2018-10-06","Non"]
[{"$f":"TEXT(TabRéfMenus[Numéro référentiels menus],\"0000\") & \"-\" & TabRéfMenus[Titre référentiels menus]","v":"0005-VWE"},5,"VWE","VWE05","Poisson","CJRM09","Samedi et dimanche midis","CCRM28","Unité : 1 pour 1repas","CDRM03","Menu viandes",null,"-",null,"-","2018-10-06","Non"]
[{"$f":"TEXT(TabRéfMenus[Numéro référentiels menus],\"0000\") & \"-\" & TabRéfMenus[Titre référentiels menus]","v":"0006-VWE"},6,"VWE","VWE06","Porc","CJRM09","Samedi et dimanche midis","CCRM19","1 tranche pour 1 repas","CDRM01","Menu journalier",null,"-",null,"-","2018-10-06","Non"]
[{"$f":"TEXT(TabRéfMenus[Numéro référentiels menus],\"0000\") & \"-\" & TabRéfMenus[Titre référentiels menus]","v":"0007-VWE"},7,"VWE","VWE07","Veau","CJRM09","Samedi et dimanche midis","CCRM19","1 tranche pour 1 repas","CDRM03","Menu viandes",null,"-",null,"-","2018-10-07","Non"]
[{"$f":"TEXT(TabRéfMenus[Numéro référentiels menus],\"0000\") & \"-\" & TabRéfMenus[Titre référentiels menus]","v":"0000-"}]
[{"$f":"TEXT(TabRéfMenus[Numéro référentiels menus],\"0000\") & \"-\" & TabRéfMenus[Titre référentiels menus]","v":"0000-"}]
[{"$f":"TEXT(TabRéfMenus[Numéro référentiels menus],\"0000\") & \"-\" & TabRéfMenus[Titre référentiels menus]","v":"0000-"}]
[{"$f":"TEXT(TabRéfMenus[Numéro référentiels menus],\"0000\") & \"-\" & TabRéfMenus[Titre référentiels menus]","v":"0000-"}]
[{"$f":"TEXT(TabRéfMenus[Numéro référentiels menus],\"0000\") & \"-\" & TabRéfMenus[Titre référentiels menus]","v":"0000-"}]
[{"$f":"TEXT(TabRéfMenus[Numéro référentiels menus],\"0000\") & \"-\" & TabRéfMenus[Titre référentiels menus]","v":"0000-"}]
[{"$f":"TEXT(TabRéfMenus[Numéro référentiels menus],\"0000\") & \"-\" & TabRéfMenus[Titre référentiels menus]","v":"0000-"}]
[{"$f":"TEXT(TabRéfMenus[Numéro référentiels menus],\"0000\") & \"-\" & TabRéfMenus[Titre référentiels menus]","v":"0000-"}]
[{"$f":"TEXT(TabRéfMenus[Numéro référentiels menus],\"0000\") & \"-\" & TabRéfMenus[Titre référentiels menus]","v":"0000-"}]
[{"$f":"TEXT(TabRéfMenus[Numéro référentiels menus],\"0000\") & \"-\" & TabRéfMenus[Titre référentiels menus]","v":"0000-"}]
[{"$f":"TEXT(TabRéfMenus[Numéro référentiels menus],\"0000\") & \"-\" & TabRéfMenus[Titre référentiels menus]","v":"0000-"}]
[{"$f":"TEXT(TabRéfMenus[Numéro référentiels menus],\"0000\") & \"-\" & TabRéfMenus[Titre référentiels menus]","v":"0000-"}]
[{"$f":"TEXT(TabRéfMenus[Numéro référentiels menus],\"0000\") & \"-\" & TabRéfMenus[Titre référentiels menus]","v":"0000-"}]
[{"$f":"TEXT(TabRéfMenus[Numéro référentiels menus],\"0000\") & \"-\" & TabRéfMenus[Titre référentiels menus]","v":"0000-"}]
[{"$f":"TEXT(TabRéfMenus[Numéro référentiels menus],\"0000\") & \"-\" & TabRéfMenus[Titre référentiels menus]","v":"0000-"}]
[{"$f":"TEXT(TabRéfMenus[Numéro référentiels menus],\"0000\") & \"-\" & TabRéfMenus[Titre référentiels menus]","v":"0000-"}]
[{"$f":"TEXT(TabRéfMenus[Numéro référentiels menus],\"0000\") & \"-\" & TabRéfMenus[Titre référentiels menus]","v":"0000-"}]
[{"$f":"TEXT(TabRéfMenus[Numéro référentiels menus],\"0000\") & \"-\" & TabRéfMenus[Titre référentiels menus]","v":"0000-"}]
[{"$f":"TEXT(TabRéfMenus[Numéro référentiels menus],\"0000\") & \"-\" & TabRéfMenus[Titre référentiels menus]","v":"0000-"}]
[{"$f":"TEXT(TabRéfMenus[Numéro référentiels menus],\"0000\") & \"-\" & TabRéfMenus[Titre référentiels menus]","v":"0000-"}]
[{"$f":"TEXT(TabRéfMenus[Numéro référentiels menus],\"0000\") & \"-\" & TabRéfMenus[Titre référentiels menus]","v":"0000-"}]
[{"$f":"TEXT(TabRéfMenus[Numéro référentiels menus],\"0000\") & \"-\" & TabRéfMenus[Titre référentiels menus]","v":"0000-"}]
[{"$f":"TEXT(TabRéfMenus[Numéro référentiels menus],\"0000\") & \"-\" & TabRéfMenus[Titre référentiels menus]","v":"0000-"}]
[{"$f":"TEXT(TabRéfMenus[Numéro référentiels menus],\"0000\") & \"-\" & TabRéfMenus[Titre référentiels menus]","v":"0000-"}]
[{"$f":"TEXT(TabRéfMenus[Numéro référentiels menus],\"0000\") & \"-\" & TabRéfMenus[Titre référentiels menus]","v":"0000-"}]
[{"$f":"TEXT(TabRéfMenus[Numéro référentiels menus],\"0000\") & \"-\" & TabRéfMenus[Titre référentiels menus]","v":"0000-"}]
[{"$f":"TEXT(TabRéfMenus[Numéro référentiels menus],\"0000\") & \"-\" & TabRéfMenus[Titre référentiels menus]","v":"0000-"}]
[{"$f":"TEXT(TabRéfMenus[Numéro référentiels menus],\"0000\") & \"-\" & TabRéfMenus[Titre référentiels menus]","v":"0000-"}]
[{"$f":"TEXT(TabRéfMenus[Numéro référentiels menus],\"0000\") & \"-\" & TabRéfMenus[Titre référentiels menus]","v":"0000-"}]
[{"$f":"TEXT(TabRéfMenus[Numéro référentiels menus],\"0000\") & \"-\" & TabRéfMenus[Titre référentiels menus]","v":"0000-"}]
[{"$f":"TEXT(TabRéfMenus[Numéro référentiels menus],\"0000\") & \"-\" & TabRéfMenus[Titre référentiels menus]","v":"0000-"}]
[{"$f":"TEXT(TabRéfMenus[Numéro référentiels menus],\"0000\") & \"-\" & TabRéfMenus[Titre référentiels menus]","v":"0000-"}]
[{"$f":"TEXT(TabRéfMenus[Numéro référentiels menus],\"0000\") & \"-\" & TabRéfMenus[Titre référentiels menus]","v":"0000-"}]
[{"$f":"TEXT(TabRéfMenus[Numéro référentiels menus],\"0000\") & \"-\" & TabRéfMenus[Titre référentiels menus]","v":"0000-"}]
[{"$f":"TEXT(TabRéfMenus[Numéro référentiels menus],\"0000\") & \"-\" & TabRéfMenus[Titre référentiels menus]","v":"0000-"}]
[{"$f":"TEXT(TabRéfMenus[Numéro référentiels menus],\"0000\") & \"-\" & TabRéfMenus[Titre référentiels menus]","v":"0000-"}]
[{"$f":"TEXT(TabRéfMenus[Numéro référentiels menus],\"0000\") & \"-\" & TabRéfMenus[Titre référentiels menus]","v":"0000-"}]
[{"$f":"TEXT(TabRéfMenus[Numéro référentiels menus],\"0000\") & \"-\" & TabRéfMenus[Titre référentiels menus]","v":"0000-"}]
[{"$f":"TEXT(TabRéfMenus[Numéro référentiels menus],\"0000\") & \"-\" & TabRéfMenus[Titre référentiels menus]","v":"0000-"}]
[{"$f":"TEXT(TabRéfMenus[Numéro référentiels menus],\"0000\") & \"-\" & TabRéfMenus[Titre référentiels menus]","v":"0000-"}]
[{"$f":"TEXT(TabRéfMenus[Numéro référentiels menus],\"0000\") & \"-\" & TabRéfMenus[Titre référentiels menus]","v":"0000-"}]
[{"$f":"TEXT(TabRéfMenus[Numéro référentiels menus],\"0000\") & \"-\" & TabRéfMenus[Titre référentiels menus]","v":"0000-"}]
[{"$f":"TEXT(TabRéfMenus[Numéro référentiels menus],\"0000\") & \"-\" & TabRéfMenus[Titre référentiels menus]","v":"0000-"}]
[{"$f":"TEXT(TabRéfMenus[Numéro référentiels menus],\"0000\") & \"-\" & TabRéfMenus[Titre référentiels menus]","v":"0000-"}]
[{"$f":"TEXT(TabRéfMenus[Numéro référentiels menus],\"0000\") & \"-\" & TabRéfMenus[Titre référentiels menus]","v":"0000-"}]
[{"$f":"TEXT(TabRéfMenus[Numéro référentiels menus],\"0000\") & \"-\" & TabRéfMenus[Titre référentiels menus]","v":"0000-"}]
[{"$f":"TEXT(TabRéfMenus[Numéro référentiels menus],\"0000\") & \"-\" & TabRéfMenus[Titre référentiels menus]","v":"0000-"}]
[{"$f":"TEXT(TabRéfMenus[Numéro référentiels menus],\"0000\") & \"-\" & TabRéfMenus[Titre référentiels menus]","v":"0000-"}]
[{"$f":"TEXT(TabRéfMenus[Numéro référentiels menus],\"0000\") & \"-\" & TabRéfMenus[Titre référentiels menus]","v":"0000-"}]
[{"$f":"TEXT(TabRéfMenus[Numéro référentiels menus],\"0000\") & \"-\" & TabRéfMenus[Titre référentiels menus]","v":"0000-"}]
[{"$f":"TEXT(TabRéfMenus[Numéro référentiels menus],\"0000\") & \"-\" & TabRéfMenus[Titre référentiels menus]","v":"0000-"}]
[{"$f":"TEXT(TabRéfMenus[Numéro référentiels menus],\"0000\") & \"-\" & TabRéfMenus[Titre référentiels menus]","v":"0000-"}]
[{"$f":"TEXT(TabRéfMenus[Numéro référentiels menus],\"0000\") & \"-\" & TabRéfMenus[Titre référentiels menus]","v":"0000-"}]
[{"$f":"TEXT(TabRéfMenus[Numéro référentiels menus],\"0000\") & \"-\" & TabRéfMenus[Titre référentiels menus]","v":"0000-"}]
[{"$f":"TEXT(TabRéfMenus[Numéro référentiels menus],\"0000\") & \"-\" & TabRéfMenus[Titre référentiels menus]","v":"0000-"}]
[{"$f":"TEXT(TabRéfMenus[Numéro référentiels menus],\"0000\") & \"-\" & TabRéfMenus[Titre référentiels menus]","v":"0000-"}]
[{"$f":"TEXT(TabRéfMenus[Numéro référentiels menus],\"0000\") & \"-\" & TabRéfMenus[Titre référentiels menus]","v":"0000-"}]
[{"$f":"TEXT(TabRéfMenus[Numéro référentiels menus],\"0000\") & \"-\" & TabRéfMenus[Titre référentiels menus]","v":"0000-"}]
[{"$f":"TEXT(TabRéfMenus[Numéro référentiels menus],\"0000\") & \"-\" & TabRéfMenus[Titre référentiels menus]","v":"0000-"}]
[{"$f":"TEXT(TabRéfMenus[Numéro référentiels menus],\"0000\") & \"-\" & TabRéfMenus[Titre référentiels menus]","v":"0000-"}]
[{"$f":"TEXT(TabRéfMenus[Numéro référentiels menus],\"0000\") & \"-\" & TabRéfMenus[Titre référentiels menus]","v":"0000-"}]
[{"$f":"TEXT(TabRéfMenus[Numéro référentiels menus],\"0000\") & \"-\" & TabRéfMenus[Titre référentiels menus]","v":"0000-"}]
[{"$f":"TEXT(TabRéfMenus[Numéro référentiels menus],\"0000\") & \"-\" & TabRéfMenus[Titre référentiels menus]","v":"0000-"}]
[{"$f":"TEXT(TabRéfMenus[Numéro référentiels menus],\"0000\") & \"-\" & TabRéfMenus[Titre référentiels menus]","v":"0000-"}]
[{"$f":"TEXT(TabRéfMenus[Numéro référentiels menus],\"0000\") & \"-\" & TabRéfMenus[Titre référentiels menus]","v":"0000-"}]
[{"$f":"TEXT(TabRéfMenus[Numéro référentiels menus],\"0000\") & \"-\" & TabRéfMenus[Titre référentiels menus]","v":"0000-"}]
[{"$f":"TEXT(TabRéfMenus[Numéro référentiels menus],\"0000\") & \"-\" & TabRéfMenus[Titre référentiels menus]","v":"0000-"}]
[{"$f":"TEXT(TabRéfMenus[Numéro référentiels menus],\"0000\") & \"-\" & TabRéfMenus[Titre référentiels menus]","v":"0000-"}]
[{"$f":"TEXT(TabRéfMenus[Numéro référentiels menus],\"0000\") & \"-\" & TabRéfMenus[Titre référentiels menus]","v":"0000-"}]
[{"$f":"TEXT(TabRéfMenus[Numéro référentiels menus],\"0000\") & \"-\" & TabRéfMenus[Titre référentiels menus]","v":"0000-"}]
[{"$f":"TEXT(TabRéfMenus[Numéro référentiels menus],\"0000\") & \"-\" & TabRéfMenus[Titre référentiels menus]","v":"0000-"}]
[{"$f":"TEXT(TabRéfMenus[Numéro référentiels menus],\"0000\") & \"-\" & TabRéfMenus[Titre référentiels menus]","v":"0000-"}]
[{"$f":"TEXT(TabRéfMenus[Numéro référentiels menus],\"0000\") & \"-\" & TabRéfMenus[Titre référentiels menus]","v":"0000-"}]
[{"$f":"TEXT(TabRéfMenus[Numéro référentiels menus],\"0000\") & \"-\" & TabRéfMenus[Titre référentiels menus]","v":"0000-"}]
[{"$f":"TEXT(TabRéfMenus[Numéro référentiels menus],\"0000\") & \"-\" & TabRéfMenus[Titre référentiels menus]","v":"0000-"}]
[{"$f":"TEXT(TabRéfMenus[Numéro référentiels menus],\"0000\") & \"-\" & TabRéfMenus[Titre référentiels menus]","v":"0000-"}]
[{"$f":"TEXT(TabRéfMenus[Numéro référentiels menus],\"0000\") & \"-\" & TabRéfMenus[Titre référentiels menus]","v":"0000-"}]
[{"$f":"TEXT(TabRéfMenus[Numéro référentiels menus],\"0000\") & \"-\" & TabRéfMenus[Titre référentiels menus]","v":"0000-"}]
[{"$f":"TEXT(TabRéfMenus[Numéro référentiels menus],\"0000\") & \"-\" & TabRéfMenus[Titre référentiels menus]","v":"0000-"}]
[{"$f":"TEXT(TabRéfMenus[Numéro référentiels menus],\"0000\") & \"-\" & TabRéfMenus[Titre référentiels menus]","v":"0000-"}]
[{"$f":"TEXT(TabRéfMenus[Numéro référentiels menus],\"0000\") & \"-\" & TabRéfMenus[Titre référentiels menus]","v":"0000-"}]
[{"$f":"TEXT(TabRéfMenus[Numéro référentiels menus],\"0000\") & \"-\" & TabRéfMenus[Titre référentiels menus]","v":"0000-"}]
[{"$f":"TEXT(TabRéfMenus[Numéro référentiels menus],\"0000\") & \"-\" & TabRéfMenus[Titre référentiels menus]","v":"0000-"}]
[{"$f":"TEXT(TabRéfMenus[Numéro référentiels menus],\"0000\") & \"-\" & TabRéfMenus[Titre référentiels menus]","v":"0000-"}]
[{"$f":"TEXT(TabRéfMenus[Numéro référentiels menus],\"0000\") & \"-\" & TabRéfMenus[Titre référentiels menus]","v":"0000-"}]
[{"$f":"TEXT(TabRéfMenus[Numéro référentiels menus],\"0000\") & \"-\" & TabRéfMenus[Titre référentiels menus]","v":"0000-"}]
[{"$f":"TEXT(TabRéfMenus[Numéro référentiels menus],\"0000\") & \"-\" & TabRéfMenus[Titre référentiels menus]","v":"0000-"}]
[{"$f":"TEXT(TabRéfMenus[Numéro référentiels menus],\"0000\") & \"-\" & TabRéfMenus[Titre référentiels menus]","v":"0000-"}]
[{"$f":"TEXT(TabRéfMenus[Numéro référentiels menus],\"0000\") & \"-\" & TabRéfMenus[Titre référentiels menus]","v":"0000-"}]
[{"$f":"TEXT(TabRéfMenus[Numéro référentiels menus],\"0000\") & \"-\" & TabRéfMenus[Titre référentiels menus]","v":"0000-"}]
[{"$f":"TEXT(TabRéfMenus[Numéro référentiels menus],\"0000\") & \"-\" & TabRéfMenus[Titre référentiels menus]","v":"0000-"}]
[{"$f":"TEXT(TabRéfMenus[Numéro référentiels menus],\"0000\") & \"-\" & TabRéfMenus[Titre référentiels menus]","v":"0000-"}]
[{"$f":"TEXT(TabRéfMenus[Numéro référentiels menus],\"0000\") & \"-\" & TabRéfMenus[Titre référentiels menus]","v":"0000-"}]
[{"$f":"TEXT(TabRéfMenus[Numéro référentiels menus],\"0000\") & \"-\" & TabRéfMenus[Titre référentiels menus]","v":"0000-"}]
[{"$f":"TEXT(TabRéfMenus[Numéro référentiels menus],\"0000\") & \"-\" & TabRéfMenus[Titre référentiels menus]","v":"0000-"}]
[{"$f":"TEXT(TabRéfMenus[Numéro référentiels menus],\"0000\") & \"-\" & TabRéfMenus[Titre référentiels menus]","v":"0000-"}]
[{"$f":"TEXT(TabRéfMenus[Numéro référentiels menus],\"0000\") & \"-\" & TabRéfMenus[Titre référentiels menus]","v":"0000-"}]
[{"$f":"TEXT(TabRéfMenus[Numéro référentiels menus],\"0000\") & \"-\" & TabRéfMenus[Titre référentiels menus]","v":"0000-"}]
[{"$f":"TEXT(TabRéfMenus[Numéro référentiels menus],\"0000\") & \"-\" & TabRéfMenus[Titre référentiels menus]","v":"0000-"}]
[{"$f":"TEXT(TabRéfMenus[Numéro référentiels menus],\"0000\") & \"-\" & TabRéfMenus[Titre référentiels menus]","v":"0000-"}]
[{"$f":"TEXT(TabRéfMenus[Numéro référentiels menus],\"0000\") & \"-\" & TabRéfMenus[Titre référentiels menus]","v":"0000-"}]
[{"$f":"TEXT(TabRéfMenus[Numéro référentiels menus],\"0000\") & \"-\" & TabRéfMenus[Titre référentiels menus]","v":"0000-"}]
[{"$f":"TEXT(TabRéfMenus[Numéro référentiels menus],\"0000\") & \"-\" & TabRéfMenus[Titre référentiels menus]","v":"0000-"}]
[{"$f":"TEXT(TabRéfMenus[Numéro référentiels menus],\"0000\") & \"-\" & TabRéfMenus[Titre référentiels menus]","v":"0000-"}]
[{"$f":"TEXT(TabRéfMenus[Numéro référentiels menus],\"0000\") & \"-\" & TabRéfMenus[Titre référentiels menus]","v":"0000-"}]
[{"$f":"TEXT(TabRéfMenus[Numéro référentiels menus],\"0000\") & \"-\" & TabRéfMenus[Titre référentiels menus]","v":"0000-"}]
[{"$f":"TEXT(TabRéfMenus[Numéro référentiels menus],\"0000\") & \"-\" & TabRéfMenus[Titre référentiels menus]","v":"0000-"}]
[{"$f":"TEXT(TabRéfMenus[Numéro référentiels menus],\"0000\") & \"-\" & TabRéfMenus[Titre référentiels menus]","v":"0000-"}]
[{"$f":"TEXT(TabRéfMenus[Numéro référentiels menus],\"0000\") & \"-\" & TabRéfMenus[Titre référentiels menus]","v":"0000-"}]
[{"$f":"TEXT(TabRéfMenus[Numéro référentiels menus],\"0000\") & \"-\" & TabRéfMenus[Titre référentiels menus]","v":"0000-"}]
[{"$f":"TEXT(TabRéfMenus[Numéro référentiels menus],\"0000\") & \"-\" & TabRéfMenus[Titre référentiels menus]","v":"0000-"}]
[{"$f":"TEXT(TabRéfMenus[Numéro référentiels menus],\"0000\") & \"-\" & TabRéfMenus[Titre référentiels menus]","v":"0000-"}]
[{"$f":"TEXT(TabRéfMenus[Numéro référentiels menus],\"0000\") & \"-\" & TabRéfMenus[Titre référentiels menus]","v":"0000-"}]
[{"$f":"TEXT(TabRéfMenus[Numéro référentiels menus],\"0000\") & \"-\" & TabRéfMenus[Titre référentiels menus]","v":"0000-"}]
[{"$f":"TEXT(TabRéfMenus[Numéro référentiels menus],\"0000\") & \"-\" & TabRéfMenus[Titre référentiels menus]","v":"0000-"}]
[{"$f":"TEXT(TabRéfMenus[Numéro référentiels menus],\"0000\") & \"-\" & TabRéfMenus[Titre référentiels menus]","v":"0000-"}]
[{"$f":"TEXT(TabRéfMenus[Numéro référentiels menus],\"0000\") & \"-\" & TabRéfMenus[Titre référentiels menus]","v":"0000-"}]
[{"$f":"TEXT(TabRéfMenus[Numéro référentiels menus],\"0000\") & \"-\" & TabRéfMenus[Titre référentiels menus]","v":"0000-"}]
[{"$f":"TEXT(TabRéfMenus[Numéro référentiels menus],\"0000\") & \"-\" & TabRéfMenus[Titre référentiels menus]","v":"0000-"}]
[{"$f":"TEXT(TabRéfMenus[Numéro référentiels menus],\"0000\") & \"-\" & TabRéfMenus[Titre référentiels menus]","v":"0000-"}]
[{"$f":"TEXT(TabRéfMenus[Numéro référentiels menus],\"0000\") & \"-\" & TabRéfMenus[Titre référentiels menus]","v":"0000-"}]
[{"$f":"TEXT(TabRéfMenus[Numéro référentiels menus],\"0000\") & \"-\" & TabRéfMenus[Titre référentiels menus]","v":"0000-"}]
[{"$f":"TEXT(TabRéfMenus[Numéro référentiels menus],\"0000\") & \"-\" & TabRéfMenus[Titre référentiels menus]","v":"0000-"}]
[{"$f":"TEXT(TabRéfMenus[Numéro référentiels menus],\"0000\") & \"-\" & TabRéfMenus[Titre référentiels menus]","v":"0000-"}]
[{"$f":"TEXT(TabRéfMenus[Numéro référentiels menus],\"0000\") & \"-\" & TabRéfMenus[Titre référentiels menus]","v":"0000-"}]
[{"$f":"TEXT(TabRéfMenus[Numéro référentiels menus],\"0000\") & \"-\" & TabRéfMenus[Titre référentiels menus]","v":"0000-"}]
[{"$f":"TEXT(TabRéfMenus[Numéro référentiels menus],\"0000\") & \"-\" & TabRéfMenus[Titre référentiels menus]","v":"0000-"}]
[{"$f":"TEXT(TabRéfMenus[Numéro référentiels menus],\"0000\") & \"-\" & TabRéfMenus[Titre référentiels menus]","v":"0000-"}]
[{"$f":"TEXT(TabRéfMenus[Numéro référentiels menus],\"0000\") & \"-\" & TabRéfMenus[Titre référentiels menus]","v":"0000-"}]
[{"$f":"TEXT(TabRéfMenus[Numéro référentiels menus],\"0000\") & \"-\" & TabRéfMenus[Titre référentiels menus]","v":"0000-"}]
[{"$f":"TEXT(TabRéfMenus[Numéro référentiels menus],\"0000\") & \"-\" & TabRéfMenus[Titre référentiels menus]","v":"0000-"}]
[{"$f":"TEXT(TabRéfMenus[Numéro référentiels menus],\"0000\") & \"-\" & TabRéfMenus[Titre référentiels menus]","v":"0000-"}]
[{"$f":"TEXT(TabRéfMenus[Numéro référentiels menus],\"0000\") & \"-\" & TabRéfMenus[Titre référentiels menus]","v":"0000-"}]
[{"$f":"TEXT(TabRéfMenus[Numéro référentiels menus],\"0000\") & \"-\" & TabRéfMenus[Titre référentiels menus]","v":"0000-"}]
[{"$f":"TEXT(TabRéfMenus[Numéro référentiels menus],\"0000\") & \"-\" & TabRéfMenus[Titre référentiels menus]","v":"0000-"}]
[{"$f":"TEXT(TabRéfMenus[Numéro référentiels menus],\"0000\") & \"-\" & TabRéfMenus[Titre référentiels menus]","v":"0000-"}]
[{"$f":"TEXT(TabRéfMenus[Numéro référentiels menus],\"0000\") & \"-\" & TabRéfMenus[Titre référentiels menus]","v":"0000-"}]
[{"$f":"TEXT(TabRéfMenus[Numéro référentiels menus],\"0000\") & \"-\" & TabRéfMenus[Titre référentiels menus]","v":"0000-"}]
[{"$f":"TEXT(TabRéfMenus[Numéro référentiels menus],\"0000\") & \"-\" & TabRéfMenus[Titre référentiels menus]","v":"0000-"}]
[{"$f":"TEXT(TabRéfMenus[Numéro référentiels menus],\"0000\") & \"-\" & TabRéfMenus[Titre référentiels menus]","v":"0000-"}]
[{"$f":"TEXT(TabRéfMenus[Numéro référentiels menus],\"0000\") & \"-\" & TabRéfMenus[Titre référentiels menus]","v":"0000-"}]
[{"$f":"TEXT(TabRéfMenus[Numéro référentiels menus],\"0000\") & \"-\" & TabRéfMenus[Titre référentiels menus]","v":"0000-"}]
[{"$f":"TEXT(TabRéfMenus[Numéro référentiels menus],\"0000\") & \"-\" & TabRéfMenus[Titre référentiels menus]","v":"0000-"}]
[{"$f":"TEXT(TabRéfMenus[Numéro référentiels menus],\"0000\") & \"-\" & TabRéfMenus[Titre référentiels menus]","v":"0000-"}]
[{"$f":"TEXT(TabRéfMenus[Numéro référentiels menus],\"0000\") & \"-\" & TabRéfMenus[Titre référentiels menus]","v":"0000-"}]
[{"$f":"TEXT(TabRéfMenus[Numéro référentiels menus],\"0000\") & \"-\" & TabRéfMenus[Titre référentiels menus]","v":"0000-"}]
[{"$f":"TEXT(TabRéfMenus[Numéro référentiels menus],\"0000\") & \"-\" & TabRéfMenus[Titre référentiels menus]","v":"0000-"}]
[{"$f":"TEXT(TabRéfMenus[Numéro référentiels menus],\"0000\") & \"-\" & TabRéfMenus[Titre référentiels menus]","v":"0000-"}]
[{"$f":"TEXT(TabRéfMenus[Numéro référentiels menus],\"0000\") & \"-\" & TabRéfMenus[Titre référentiels menus]","v":"0000-"}]
[{"$f":"TEXT(TabRéfMenus[Numéro référentiels menus],\"0000\") & \"-\" & TabRéfMenus[Titre référentiels menus]","v":"0000-"}]
[{"$f":"TEXT(TabRéfMenus[Numéro référentiels menus],\"0000\") & \"-\" & TabRéfMenus[Titre référentiels menus]","v":"0000-"}]
[{"$f":"TEXT(TabRéfMenus[Numéro référentiels menus],\"0000\") & \"-\" & TabRéfMenus[Titre référentiels menus]","v":"0000-"}]
[{"$f":"TEXT(TabRéfMenus[Numéro référentiels menus],\"0000\") & \"-\" & TabRéfMenus[Titre référentiels menus]","v":"0000-"}]
[{"$f":"TEXT(TabRéfMenus[Numéro référentiels menus],\"0000\") & \"-\" & TabRéfMenus[Titre référentiels menus]","v":"0000-"}]
[{"$f":"TEXT(TabRéfMenus[Numéro référentiels menus],\"0000\") & \"-\" & TabRéfMenus[Titre référentiels menus]","v":"0000-"}]
[{"$f":"TEXT(TabRéfMenus[Numéro référentiels menus],\"0000\") & \"-\" & TabRéfMenus[Titre référentiels menus]","v":"0000-"}]
[{"$f":"TEXT(TabRéfMenus[Numéro référentiels menus],\"0000\") & \"-\" & TabRéfMenus[Titre référentiels menus]","v":"0000-"},null,null,null,null,null,null,null,"2018-09-21","Oui"]
[{"$f":"TEXT(TabRéfMenus[Numéro référentiels menus],\"0000\") & \"-\" & TabRéfMenus[Titre référentiels menus]","v":"0000-"},null,null,null,null,null,null,null,"2018-09-21","Oui"]
[{"$f":"TEXT(TabRéfMenus[Numéro référentiels menus],\"0000\") & \"-\" & TabRéfMenus[Titre référentiels menus]","v":"0000-"},null,null,null,null,null,null,null,"2018-09-21","Oui"]
[{"$f":"TEXT(TabRéfMenus[Numéro référentiels menus],\"0000\") & \"-\" & TabRéfMenus[Titre référentiels menus]","v":"0000-"},null,null,null,null,null,null,null,"2018-09-21","Oui"]
[{"$f":"TEXT(TabRéfMenus[Numéro référentiels menus],\"0000\") & \"-\" & TabRéfMenus[Titre référentiels menus]","v":"0000-"},null,null,null,null,null,null,null,"2018-09-21","Oui"]
[{"$f":"TEXT(TabRéfMenus[Numéro référentiels menus],\"0000\") & \"-\" & TabRéfMenus[Titre référentiels menus]","v":"0000-"},null,null,null,null,null,null,null,"2018-09-21","Oui"]
[{"$f":"TEXT(TabRéfMenus[Numéro référentiels menus],\"0000\") & \"-\" & TabRéfMenus[Titre référentiels menus]","v":"0000-"},null,null,null,null,null,null,null,"2018-09-21","Oui"]
[{"$f":"TEXT(TabRéfMenus[Numéro référentiels menus],\"0000\") & \"-\" & TabRéfMenus[Titre référentiels menus]","v":"0000-"},null,null,null,null,null,null,null,"2018-09-21","Oui"]

{"sheet":"Modifier référentiels menus","index":4,"n_rows":19,"n_cols":2,"rows_kept":19,"cut":false,"hidden":false,"merged":[]}
["Modification d'un référentiel"]
[]
["Numéro référentiels menus",1]
["Code titre référentiels menus","CTRM01"]
["Titre référentiels menus",{"$f":"IFERROR(INDEX(Titre_référentiels_menus,MATCH(B4,Code_titre_référentiels_menus,0)),\"'\")","v":"DMR"}]
["Liste code référentiels menus","DMR01"]
["Liste nom référentiels menus","Pomme"]
["Code jour référentiels menus","CJRM05"]
["Jour référentiels menus","Lundi à vendredi midis"]
["Code conditionnement référentiels menus","CCRM16"]
["Conditionnement référentiels menus","1 sachet de 1,5, 2 ou 3 kilogrammes. 1 pomme pour 1 repas"]
["Code destination référentiels menus","CDRM02"]
["Destination référentiels menus","Menu midi retraite"]
["Code période concernée menus"]
["Période concernée menus"]
["Code période viandes week-end"]
["Période viande week-end","-"]
["Date création référentiels menus"]
["À modifier","Non"]